Workbook

Sheet Rekapitulace stavby
A1: Export VZ | D1: List obsahuje: | K1: 1) Rekapitulace stavby | W1: 2) Rekapitulace objektů stavby a soupisů prací | BS1: 1.0 | BT1: False | BU1: False | BV1: {65F73D0C-549D-4A12-9F3C-1DAFA063FF34}
C2: optimalizováno pro tisk sestav ve formátu A4 - na výšku | AR2: >> skryté sloupce << | BS2: 0,01 | BT2: 21
BS3: 0,01 | BT3: 15
C4: REKAPITULACE STAVBY | AS4: v --- níže se nacházejí doplnkové a pomocné údaje k sestavám --- v | BE4: Návod na vyplnění | BS4: 0,001
BE5: Měnit lze pouze buňky se žlutým podbarvením! 1) v Rekapitulaci stavby vyplňte údaje o Uchazeči (přenesou se do ostatních sestav i v jiných listech) 2) na vybraných listech vyplňte v sestavě Soupis prací ceny u položek Podrobnosti k vyplnění naleznete na poslední záložce s Pokyny pro vyplnění | BS5: 0,01
D6: Stavba: | K6: 120271 - Vypracování projektové dokumentace na výstavbu chodníku na ulici Zauliční | BS6: 0,1
BS7: 1
D8: Místo: | AK8: Datum: | AN8: 09.04.2014 | BS8: 10
BS9: 100
D10: Zadavatel: | AK10: IČ: | BS10: 0,1
E11: Úmob Krásné Pole | AK11: DIČ: | BS11: 0,1
BS12: 0,1
D13: Uchazeč: | AK13: IČ: | AN13: Vyplň údaj | BS13: 0,1
E14: Vyplň údaj | AK14: DIČ: | AN14: Vyplň údaj | BS14: 0,1
BS15: False
D16: Projektant: | AK16: IČ: | BS16: False
E17: Doparvoprojekt Ostrava spol. s r.o. | AK17: DIČ: | BS17: True
BS18: 0,01
D19: Poznámka: | BS19: 0,1
BS20: False
D23: Cena bez DPH | AK23: =ROUNDUP($AG$49,2) -> 1695634.55
D25: DPH | F25: základní | L25: 0.21 | T25: ze | W25: =ROUNDUP($AZ$49,2) -> 1695634.55 | AK25: =ROUNDUP($AV$49,1) -> 356083.3
F26: snížená | L26: 0.15 | T26: ze | W26: =ROUNDUP($BA$49,2) -> 0 | AK26: =ROUNDUP($AW$49,1) -> 0
F27: zákl. přenesená | L27: 0.21 | T27: ze | W27: =ROUNDUP($BB$49,2) -> 0 | AK27: 0
F28: sníž. přenesená | L28: 0.15 | T28: ze | W28: =ROUNDUP($BC$49,2) -> 0 | AK28: 0
F29: nulová | L29: 0 | T29: ze | W29: =ROUNDUP($BD$49,2) -> 0 | AK29: 0
D31: Cena s DPH | T31: v | X31: CZK | AK31: =ROUNDUP(SUM($AK$23:$AK$29),2) -> 2051717.85
C38: REKAPITULACE OBJEKTŮ STAVBY A SOUPISŮ PRACÍ
C40: Stavba: | L40: =$K$6 -> 120271 - Vypracování projektové dokumentace na výstavbu chodníku na ulici Zauliční
C42: Místo: | L42: =IF($K$8="","",$K$8) ->  | AI42: Datum: | AM42: =IF($AN$8="","",$AN$8) -> 09.04.2014
C44: Zadavatel: | L44: =IF($E$11="","",$E$11) -> Úmob Krásné Pole | AI44: Projektant: | AM44: =IF($E$17="","",$E$17) -> Doparvoprojekt Ostrava spol. s r.o. | AS44: Informatívní údaje z listů zakázek
C45: Uchazeč: | L45: =IF($E$14="Vyplň údaj","",$E$14) -> 
C47: Kód | I47: Objekt, Soupis prací | AG47: Cena bez DPH [CZK] | AN47: Cena s DPH [CZK] | AQ47: Typ | AS47: z toho Ostat. náklady [CZK] | AT47: DPH [CZK] | AU47: Normohodiny [h] | AV47: DPH základní [CZK] | AW47: DPH snížená [CZK] | AX47: DPH základní přenesená [CZK] | AY47: DPH snížená přenesená [CZK] | AZ47: Základna DPH základní | BA47: Základna DPH snížená | BB47: Základna DPH zákl. přenesená | BC47: Základna DPH sníž. přenesená | BD47: Základna DPH nulová
C49: Náklady stavby celkem | AG49: =ROUNDUP(SUM($AG$50:$AG$52),2) -> 1695634.55 | AN49: =ROUNDUP(SUM($AG$49,$AT$49),2) -> 2051717.85 | AS49: =ROUNDUP(SUM($AS$50:$AS$52),2) -> 0 | AT49: =ROUNDUP(SUM($AV$49:$AW$49),1) -> 356083.3 | AU49: =ROUNDUP(SUM($AU$50:$AU$52),5) -> 0 | AV49: =ROUNDUP($AZ$49*$L$25,2) -> 356083.26 | AW49: =ROUNDUP($BA$49*$L$26,2) -> 0 | AX49: =ROUNDUP($BB$49*$L$25,2) -> 0 | AY49: =ROUNDUP($BC$49*$L$26,2) -> 0 | AZ49: =ROUNDUP(SUM($AZ$50:$AZ$52),2) -> 1695634.55 | BA49: =ROUNDUP(SUM($BA$50:$BA$52),2) -> 0 | BB49: =ROUNDUP(SUM($BB$50:$BB$52),2) -> 0 | BC49: =ROUNDUP(SUM($BC$50:$BC$52),2) -> 0 | BD49: =ROUNDUP(SUM($BD$50:$BD$52),2) -> 0 | BS49: D | BT49: 0 | BU49: ###NOIMPORT### | BV49: IMPORT | BW49: {65F73D0C-549D-4A12-9F3C-1DAFA063FF34} | BX49: {00000000-0000-0000-0000-000000000000} | CL49: 822 29
A50: / | D50: E | J50: E-ZÁSADY ORGANIZACE VÝSTAVBY | AG50: ='E - E-ZÁSADY ORGANIZACE V...'!$M$25 -> 52178.5 | AN50: =ROUNDUP(SUM($AG$50,$AT$50),2) -> 63136 | AQ50: STA | AS50: 0 | AT50: =ROUNDUP(SUM($AV$50:$AW$50),1) -> 10957.5 | AU50: ='E - E-ZÁSADY ORGANIZACE V...'!$W$71 -> 0 | AV50: ='E - E-ZÁSADY ORGANIZACE V...'!$M$27 -> 10957.485 | AW50: ='E - E-ZÁSADY ORGANIZACE V...'!$M$28 -> 0 | AX50: ='E - E-ZÁSADY ORGANIZACE V...'!$M$29 -> 0 | AY50: ='E - E-ZÁSADY ORGANIZACE V...'!$M$30 -> 0 | AZ50: ='E - E-ZÁSADY ORGANIZACE V...'!$H$27 -> 52178.5 | BA50: ='E - E-ZÁSADY ORGANIZACE V...'!$H$28 -> 0 | BB50: ='E - E-ZÁSADY ORGANIZACE V...'!$H$29 -> 0 | BC50: ='E - E-ZÁSADY ORGANIZACE V...'!$H$30 -> 0 | BD50: ='E - E-ZÁSADY ORGANIZACE V...'!$H$31 -> 0 | BT50: 1 | BV50: IMPORT | BW50: {08CB21A3-517C-4948-8480-B4193D04491A} | BX50: {65F73D0C-549D-4A12-9F3C-1DAFA063FF34} | CL50: 822 29 | CM50: 2
A51: / | D51: C- SO 000 | J51: VEDLEJŠÍ A OSTATNÍ NÁKLADY | AG51: ='C- SO 000 - VEDLEJŠÍ A OS...'!$M$25 -> 437740 | AN51: =ROUNDUP(SUM($AG$51,$AT$51),2) -> 529665.4 | AQ51: STA | AS51: 0 | AT51: =ROUNDUP(SUM($AV$51:$AW$51),1) -> 91925.4 | AU51: ='C- SO 000 - VEDLEJŠÍ A OS...'!$W$71 -> 0 | AV51: ='C- SO 000 - VEDLEJŠÍ A OS...'!$M$27 -> 91925.4 | AW51: ='C- SO 000 - VEDLEJŠÍ A OS...'!$M$28 -> 0 | AX51: ='C- SO 000 - VEDLEJŠÍ A OS...'!$M$29 -> 0 | AY51: ='C- SO 000 - VEDLEJŠÍ A OS...'!$M$30 -> 0 | AZ51: ='C- SO 000 - VEDLEJŠÍ A OS...'!$H$27 -> 437740 | BA51: ='C- SO 000 - VEDLEJŠÍ A OS...'!$H$28 -> 0 | BB51: ='C- SO 000 - VEDLEJŠÍ A OS...'!$H$29 -> 0 | BC51: ='C- SO 000 - VEDLEJŠÍ A OS...'!$H$30 -> 0 | BD51: ='C- SO 000 - VEDLEJŠÍ A OS...'!$H$31 -> 0 | BT51: 1 | BV51: IMPORT | BW51: {4C6443E4-29F3-45B7-853E-7E0E695111C7} | BX51: {65F73D0C-549D-4A12-9F3C-1DAFA063FF34} | CL51: 822 29 | CM51: 2
A52: / | D52: C - SO 121 | J52: CHODNÍKY | AG52: ='C - SO 121 - CHODNÍKY'!$M$25 -> 1205716.05 | AN52: =ROUNDUP(SUM($AG$52,$AT$52),2) -> 1458916.45 | AQ52: STA | AS52: 0 | AT52: =ROUNDUP(SUM($AV$52:$AW$52),1) -> 253200.4 | AU52: ='C - SO 121 - CHODNÍKY'!$W$82 -> 0 | AV52: ='C - SO 121 - CHODNÍKY'!$M$27 -> 253200.3705 | AW52: ='C - SO 121 - CHODNÍKY'!$M$28 -> 0 | AX52: ='C - SO 121 - CHODNÍKY'!$M$29 -> 0 | AY52: ='C - SO 121 - CHODNÍKY'!$M$30 -> 0 | AZ52: ='C - SO 121 - CHODNÍKY'!$H$27 -> 1205716.05 | BA52: ='C - SO 121 - CHODNÍKY'!$H$28 -> 0 | BB52: ='C - SO 121 - CHODNÍKY'!$H$29 -> 0 | BC52: ='C - SO 121 - CHODNÍKY'!$H$30 -> 0 | BD52: ='C - SO 121 - CHODNÍKY'!$H$31 -> 0 | BT52: 1 | BV52: IMPORT | BW52: {825ADD61-98A8-4455-91E3-8EB0D98D8DF6} | BX52: {65F73D0C-549D-4A12-9F3C-1DAFA063FF34} | CL52: 822 59 | CM52: 2

Sheet E - E-ZÁSADY ORGANIZACE V...
D1: List obsahuje: | F1: 1) Krycí list soupisu | H1: 2) Rekapitulace | L1: 3) Soupis prací | O1: Zpět na list: | S1: Rekapitulace stavby
C2: optimalizováno pro tisk sestav ve formátu A4 - na výšku | S2: >> skryté sloupce << | AT2: {08CB21A3-517C-4948-8480-B4193D04491A}
AT3: 2
C4: KRYCÍ LIST SOUPISU | T4: v --- níže se nacházejí doplnkové a pomocné údaje k sestavám --- v | AT4: False
D6: Stavba: | F6: ='Rekapitulace stavby'!$K$6 -> 120271 - Vypracování projektové dokumentace na výstavbu chodníku na ulici Zauliční
D7: Objekt: | F7: E - E-ZÁSADY ORGANIZACE VÝSTAVBY
D9: KSO: | F9: 822 29
D10: Místo: | M10: Datum: | O10: ='Rekapitulace stavby'!$AN$8 -> 09.04.2014
D12: Zadavatel: | M12: IČ:
E13: Úmob Krásné Pole | M13: DIČ:
D15: Uchazeč: | M15: IČ: | O15: =IF('Rekapitulace stavby'!$AN$13="","",'Rekapitulace stavby'!$AN$13) -> Vyplň údaj
E16: =IF('Rekapitulace stavby'!$E$14="","",'Rekapitulace stavby'!$E$14) -> Vyplň údaj | M16: DIČ: | O16: =IF('Rekapitulace stavby'!$AN$14="","",'Rekapitulace stavby'!$AN$14) -> Vyplň údaj
D18: Projektant: | M18: IČ:
E19: Dopravoprojekt Ostrava spol. s r.o. | M19: DIČ:
D21: Poznámka:
D25: Cena bez DPH | M25: =ROUNDUP($N$71,2) -> 52178.5
D27: DPH | E27: základní | F27: 0.21 | G27: ze | H27: =SUM($BE$71:$BE$119) -> 52178.5 | M27: =SUM($BE$71:$BE$119)*$F$27 -> 10957.485
E28: snížená | F28: 0.15 | G28: ze | H28: =SUM($BF$71:$BF$119) -> 0 | M28: =SUM($BF$71:$BF$119)*$F$28 -> 0
E29: zákl. přenesená | F29: 0.21 | G29: ze | H29: =SUM($BG$71:$BG$119) -> 0 | M29: 0
E30: sníž. přenesená | F30: 0.15 | G30: ze | H30: =SUM($BH$71:$BH$119) -> 0 | M30: 0
E31: nulová | F31: 0 | G31: ze | H31: =SUM($BI$71:$BI$119) -> 0 | M31: 0
D33: Cena s DPH | G33: v | H33: CZK | L33: =ROUNDUP(SUM($M$25:$M$31),2) -> 63135.99
C39: REKAPITULACE ČLENĚNÍ SOUPISU PRACÍ
C41: Stavba: | F41: =$F$6 -> 120271 - Vypracování projektové dokumentace na výstavbu chodníku na ulici Zauliční
C42: Objekt: | F42: =$F$7 -> E - E-ZÁSADY ORGANIZACE VÝSTAVBY
C44: Místo: | F44: =$F$10 ->  | K44: Datum: | M44: =IF($O$10="","",$O$10) -> 09.04.2014
C46: Zadavatel: | F46: =$E$13 -> Úmob Krásné Pole | K46: Projektant: | M46: =$E$19 -> Dopravoprojekt Ostrava spol. s r.o.
C47: Uchazeč: | F47: =IF($E$16="","",$E$16) -> Vyplň údaj
C49: Kód dílu - Popis | N49: Cena celkem [CZK]
C51: Náklady soupisu celkem | N51: =ROUNDUP($N$71,2) -> 52178.5 | AU51: -1
D52: HSV - Práce a dodávky HSV | N52: =ROUNDUP($N$72,2) -> 52178.5
D53: 9 - Ostatní konstrukce a práce-bourání | N53: =ROUNDUP($N$73,2) -> 52178.5
C60: SOUPIS PRACÍ
C62: Stavba: | F62: =$F$6 -> 120271 - Vypracování projektové dokumentace na výstavbu chodníku na ulici Zauliční
C63: Objekt: | F63: =$F$7 -> E - E-ZÁSADY ORGANIZACE VÝSTAVBY
C65: Místo: | F65: =$F$10 ->  | K65: Datum: | M65: =IF($O$10="","",$O$10) -> 09.04.2014
C67: Zadavatel: | F67: =$E$13 -> Úmob Krásné Pole | K67: Projektant: | M67: =$E$19 -> Dopravoprojekt Ostrava spol. s r.o.
C68: Uchazeč: | F68: =IF($E$16="","",$E$16) -> Vyplň údaj
C70: PČ | D70: Typ | E70: Kód | F70: Popis | J70: MJ | K70: Množství | L70: J.cena [CZK] | N70: Cena celkem [CZK] | R70: Cenová soustava | T70: Poznámka | U70: DPH | V70: J. Nh [h] | W70: Nh celkem [h] | X70: J. hmotnost [t] | Y70: Hmotnost celkem [t] | Z70: J. suť [t] | AA70: Suť Celkem [t]
C71: Náklady soupisu celkem | N71: =$BK$71 -> 52178.5 | W71: =$W$72 -> 0 | Y71: =$Y$72 -> 0 | AA71: =$AA$72 -> 0 | AT71: D | AU71: -1 | BK71: =$BK$72 -> 52178.5
D72: HSV - Práce a dodávky HSV | N72: =$BK$72 -> 52178.5 | W72: =$W$73 -> 0 | Y72: =$Y$73 -> 0 | AA72: =$AA$73 -> 0 | AR72: 1 | AT72: D | AU72: 0 | AY72: ROZPOCET | BK72: =$BK$73 -> 52178.5
D73: 9 - Ostatní konstrukce a práce-bourání | N73: =$BK$73 -> 52178.5 | W73: =SUM($W$74:$W$119) -> 0 | Y73: =SUM($Y$74:$Y$119) -> 0 | AA73: =SUM($AA$74:$AA$119) -> 0 | AR73: 1 | AT73: D | AU73: 1 | AY73: ROZPOCET | BK73: =SUM($BK$74:$BK$119) -> 52178.5
C74: 1 | D74: K | E74: 913121111 | F74: Montáž a demontáž dočasné dopravní značky kompletní základní | J74: kus | K74: 170 | L74: 22 | N74: =ROUND($L$74*$K$74,2) -> 3740 | R74: CS ÚRS 2013 01 | U74: základní | X74: 0 | Y74: =$X$74*$K$74 -> 0 | Z74: 0 | AA74: =$Z$74*$K$74 -> 0 | AR74: 4 | AT74: K | AU74: 2 | AY74: ROZPOCET | BE74: =IF($U$74="základní",$N$74,0) -> 3740 | BF74: =IF($U$74="snížená",$N$74,0) -> 0 | BG74: =IF($U$74="zákl. přenesená",$N$74,0) -> 0 | BH74: =IF($U$74="sníž. přenesená",$N$74,0) -> 0 | BI74: =IF($U$74="nulová",$N$74,0) -> 0 | BJ74: 1 | BK74: =ROUND($L$74*$K$74,2) -> 3740 | BL74: 4 | BM74: -507617625
F75: Montáž a demontáž dočasné dopravní značky kompletní základní | AT75: PP | AU75: 2
F76: "B1"2*2 | K76: 4 | AT76: VV | AU76: 2 | AV76: 2 | AW76: -1 | AX76: 0 | AY76: ROZPOCET
F77: "IP10a"1*2 | K77: 2 | AT77: VV | AU77: 2 | AV77: 2 | AW77: -1 | AX77: 0 | AY77: ROZPOCET
F78: "A15"2*(17+17)+(4*2) | K78: 76 | AT78: VV | AU78: 2 | AV78: 2 | AW78: -1 | AX78: 0 | AY78: ROZPOCET
F79: "E7b"2*4 | K79: 8 | AT79: VV | AU79: 2 | AV79: 2 | AW79: -1 | AX79: 0 | AY79: ROZPOCET
F80: "A6b"2*(17+17)+(4*2) | K80: 76 | AT80: VV | AU80: 2 | AV80: 2 | AW80: -1 | AX80: 0 | AY80: ROZPOCET
F81: "P7"1*2 | K81: 2 | AT81: VV | AU81: 2 | AV81: 2 | AW81: -1 | AX81: 0 | AY81: ROZPOCET
F82: "C4a"1*2 | K82: 2 | AT82: VV | AU82: 2 | AV82: 2 | AW82: -1 | AX82: 0 | AY82: ROZPOCET
F83: Součet | K83: 170 | AT83: VV | AU83: 2 | AV83: 4 | AW83: -1 | AX83: 1 | AY83: ROZPOCET
C84: 2 | D84: K | E84: 913121211 | F84: Příplatek k dočasné dopravní značce kompletní základní za první a ZKD den použití | J84: kus | K84: 535 | L84: 1.1 | N84: =ROUND($L$84*$K$84,2) -> 588.5 | R84: CS ÚRS 2013 01 | U84: základní | X84: 0 | Y84: =$X$84*$K$84 -> 0 | Z84: 0 | AA84: =$Z$84*$K$84 -> 0 | AR84: 4 | AT84: K | AU84: 2 | AY84: ROZPOCET | BE84: =IF($U$84="základní",$N$84,0) -> 588.5 | BF84: =IF($U$84="snížená",$N$84,0) -> 0 | BG84: =IF($U$84="zákl. přenesená",$N$84,0) -> 0 | BH84: =IF($U$84="sníž. přenesená",$N$84,0) -> 0 | BI84: =IF($U$84="nulová",$N$84,0) -> 0 | BJ84: 1 | BK84: =ROUND($L$84*$K$84,2) -> 588.5 | BL84: 4 | BM84: 1155092098
F85: Příplatek k dočasné dopravní značce kompletní základní za první a ZKD den použití | AT85: PP | AU85: 2
F86: "B1"2*21"dnů" | K86: 42 | AT86: VV | AU86: 2 | AV86: 2 | AW86: -1 | AX86: 0 | AY86: ROZPOCET
F87: "IP10a"1*21 "dnů" | K87: 21 | AT87: VV | AU87: 2 | AV87: 2 | AW87: -1 | AX87: 0 | AY87: ROZPOCET
F88: "A15"2*60 "dnů"+(4*14)"dnů" | K88: 176 | AT88: VV | AU88: 2 | AV88: 2 | AW88: -1 | AX88: 0 | AY88: ROZPOCET
F89: "E7b"2*60 "dnů" | K89: 120 | AT89: VV | AU89: 2 | AV89: 2 | AW89: -1 | AX89: 0 | AY89: ROZPOCET
F90: "A6b"2*60"dnů"+(2*14)"dnů" | K90: 148 | AT90: VV | AU90: 2 | AV90: 2 | AW90: -1 | AX90: 0 | AY90: ROZPOCET
F91: "P7"1*14"dnů" | K91: 14 | AT91: VV | AU91: 2 | AV91: 2 | AW91: -1 | AX91: 0 | AY91: ROZPOCET
F92: "C4a"1*14"dnů" | K92: 14 | AT92: VV | AU92: 2 | AV92: 2 | AW92: -1 | AX92: 0 | AY92: ROZPOCET
F93: Součet | K93: 535 | AT93: VV | AU93: 2 | AV93: 4 | AW93: -1 | AX93: 1 | AY93: ROZPOCET
C94: 3 | D94: K | E94: 913221112 | F94: Montáž a demontáž dočasné dopravní zábrany Z2 světelné šířky 2,5 m s 3 světly | J94: kus | K94: 4 | L94: 22 | N94: =ROUND($L$94*$K$94,2) -> 88 | R94: CS ÚRS 2013 01 | U94: základní | X94: 0 | Y94: =$X$94*$K$94 -> 0 | Z94: 0 | AA94: =$Z$94*$K$94 -> 0 | AR94: 4 | AT94: K | AU94: 2 | AY94: ROZPOCET | BE94: =IF($U$94="základní",$N$94,0) -> 88 | BF94: =IF($U$94="snížená",$N$94,0) -> 0 | BG94: =IF($U$94="zákl. přenesená",$N$94,0) -> 0 | BH94: =IF($U$94="sníž. přenesená",$N$94,0) -> 0 | BI94: =IF($U$94="nulová",$N$94,0) -> 0 | BJ94: 1 | BK94: =ROUND($L$94*$K$94,2) -> 88 | BL94: 4 | BM94: -453961447
F95: Montáž a demontáž dočasné dopravní zábrany Z2 světelné šířky 2,5 m s 3 světly | AT95: PP | AU95: 2
F96: "Z2s VS"2*2 | K96: 4 | AT96: VV | AU96: 2 | AV96: 2 | AW96: -1 | AX96: 1 | AY96: ROZPOCET
C97: 4 | D97: K | E97: 913221212 | F97: Příplatek k dočasné dopravní zábraně Z2 světelné šířky 2,5m s 3 světly za první a ZKD den použití | J97: kus | K97: 120 | L97: 33 | N97: =ROUND($L$97*$K$97,2) -> 3960 | R97: CS ÚRS 2013 01 | U97: základní | X97: 0 | Y97: =$X$97*$K$97 -> 0 | Z97: 0 | AA97: =$Z$97*$K$97 -> 0 | AR97: 4 | AT97: K | AU97: 2 | AY97: ROZPOCET | BE97: =IF($U$97="základní",$N$97,0) -> 3960 | BF97: =IF($U$97="snížená",$N$97,0) -> 0 | BG97: =IF($U$97="zákl. přenesená",$N$97,0) -> 0 | BH97: =IF($U$97="sníž. přenesená",$N$97,0) -> 0 | BI97: =IF($U$97="nulová",$N$97,0) -> 0 | BJ97: 1 | BK97: =ROUND($L$97*$K$97,2) -> 3960 | BL97: 4 | BM97: -271598440
F98: Příplatek k dočasné dopravní zábraně Z2 světelné šířky 2,5m s 3 světly za první a ZKD den použití | AT98: PP | AU98: 2
F99: "Z2s VS"2*60"dnů" | K99: 120 | AT99: VV | AU99: 2 | AV99: 2 | AW99: -1 | AX99: 1 | AY99: ROZPOCET
C100: 5 | D100: K | E100: 913321111 | F100: Montáž a demontáž dočasné dopravní směrové desky základní Z4 | J100: kus | K100: 204 | L100: 5.5 | N100: =ROUND($L$100*$K$100,2) -> 1122 | R100: CS ÚRS 2013 01 | U100: základní | X100: 0 | Y100: =$X$100*$K$100 -> 0 | Z100: 0 | AA100: =$Z$100*$K$100 -> 0 | AR100: 4 | AT100: K | AU100: 2 | AY100: ROZPOCET | BE100: =IF($U$100="základní",$N$100,0) -> 1122 | BF100: =IF($U$100="snížená",$N$100,0) -> 0 | BG100: =IF($U$100="zákl. přenesená",$N$100,0) -> 0 | BH100: =IF($U$100="sníž. přenesená",$N$100,0) -> 0 | BI100: =IF($U$100="nulová",$N$100,0) -> 0 | BJ100: 1 | BK100: =ROUND($L$100*$K$100,2) -> 1122 | BL100: 4 | BM100: 522173233
F101: Montáž a demontáž dočasných dopravních vodících zařízení směrové desky Z4 základní | AT101: PP | AU101: 2
F102: "Z4 - 6ks na 50m stavenistě"6*(17+17) | K102: 204 | AT102: VV | AU102: 2 | AV102: 2 | AW102: -1 | AX102: 1 | AY102: ROZPOCET
C103: 6 | D103: K | E103: 913321115 | F103: Montáž a demontáž dočasné soupravy směrových desek Z4 s výstražným světlem 3 desky | J103: kus | K103: 2 | L103: 2750 | N103: =ROUND($L$103*$K$103,2) -> 5500 | R103: CS ÚRS 2013 01 | U103: základní | X103: 0 | Y103: =$X$103*$K$103 -> 0 | Z103: 0 | AA103: =$Z$103*$K$103 -> 0 | AR103: 4 | AT103: K | AU103: 2 | AY103: ROZPOCET | BE103: =IF($U$103="základní",$N$103,0) -> 5500 | BF103: =IF($U$103="snížená",$N$103,0) -> 0 | BG103: =IF($U$103="zákl. přenesená",$N$103,0) -> 0 | BH103: =IF($U$103="sníž. přenesená",$N$103,0) -> 0 | BI103: =IF($U$103="nulová",$N$103,0) -> 0 | BJ103: 1 | BK103: =ROUND($L$103*$K$103,2) -> 5500 | BL103: 4 | BM103: 760448155
F104: Montáž a demontáž dočasných dopravních vodících zařízení soupravy směrových desek Z4 s výstražným světlem 3 desky | AT104: PP | AU104: 2
F105: "Z4a s SV1"1*2 | K105: 2 | AT105: VV | AU105: 2 | AV105: 2 | AW105: -1 | AX105: 1 | AY105: ROZPOCET
C106: 7 | D106: K | E106: 913321211 | F106: Příplatek k dočasné směrové desce základní Z4 za první a ZKD den použití | J106: kus | K106: 360 | L106: 22 | N106: =ROUND($L$106*$K$106,2) -> 7920 | R106: CS ÚRS 2013 01 | U106: základní | X106: 0 | Y106: =$X$106*$K$106 -> 0 | Z106: 0 | AA106: =$Z$106*$K$106 -> 0 | AR106: 4 | AT106: K | AU106: 2 | AY106: ROZPOCET | BE106: =IF($U$106="základní",$N$106,0) -> 7920 | BF106: =IF($U$106="snížená",$N$106,0) -> 0 | BG106: =IF($U$106="zákl. přenesená",$N$106,0) -> 0 | BH106: =IF($U$106="sníž. přenesená",$N$106,0) -> 0 | BI106: =IF($U$106="nulová",$N$106,0) -> 0 | BJ106: 1 | BK106: =ROUND($L$106*$K$106,2) -> 7920 | BL106: 4 | BM106: -1019800131
F107: Montáž a demontáž dočasných dopravních vodících zařízení Příplatek za první a každý další den použití dočasných dopravních vodících zařízení k ceně 32-1111 | AT107: PP | AU107: 2
F108: "Z4"6*60 "dnů" | K108: 360 | AT108: VV | AU108: 2 | AV108: 2 | AW108: -1 | AX108: 1 | AY108: ROZPOCET
C109: 8 | D109: K | E109: 913321215 | F109: Příplatek k dočasné soupravě směrových desek Z4 s výstražným světlem 3 desky za 1. a ZKD den použití | J109: kus | K109: 14 | L109: 550 | N109: =ROUND($L$109*$K$109,2) -> 7700 | R109: CS ÚRS 2013 01 | U109: základní | X109: 0 | Y109: =$X$109*$K$109 -> 0 | Z109: 0 | AA109: =$Z$109*$K$109 -> 0 | AR109: 4 | AT109: K | AU109: 2 | AY109: ROZPOCET | BE109: =IF($U$109="základní",$N$109,0) -> 7700 | BF109: =IF($U$109="snížená",$N$109,0) -> 0 | BG109: =IF($U$109="zákl. přenesená",$N$109,0) -> 0 | BH109: =IF($U$109="sníž. přenesená",$N$109,0) -> 0 | BI109: =IF($U$109="nulová",$N$109,0) -> 0 | BJ109: 1 | BK109: =ROUND($L$109*$K$109,2) -> 7700 | BL109: 4 | BM109: 1577413384
F110: Montáž a demontáž dočasných dopravních vodících zařízení Příplatek za první a každý další den použití dočasných dopravních vodících zařízení k ceně 32-1115 | AT110: PP | AU110: 2
F111: "Z4 s SV"1*14"dnů" | K111: 14 | AT111: VV | AU111: 2 | AV111: 2 | AW111: -1 | AX111: 1 | AY111: ROZPOCET
C112: 9 | D112: K | E112: 913321216 | F112: Příplatek k dočasné soupravě směrových desek Z4 s výstražným světlem 5 desek za 1. a ZKD den použití | J112: kus | K112: 360 | L112: 55 | N112: =ROUND($L$112*$K$112,2) -> 19800 | R112: CS ÚRS 2013 01 | U112: základní | X112: 0 | Y112: =$X$112*$K$112 -> 0 | Z112: 0 | AA112: =$Z$112*$K$112 -> 0 | AR112: 4 | AT112: K | AU112: 2 | AY112: ROZPOCET | BE112: =IF($U$112="základní",$N$112,0) -> 19800 | BF112: =IF($U$112="snížená",$N$112,0) -> 0 | BG112: =IF($U$112="zákl. přenesená",$N$112,0) -> 0 | BH112: =IF($U$112="sníž. přenesená",$N$112,0) -> 0 | BI112: =IF($U$112="nulová",$N$112,0) -> 0 | BJ112: 1 | BK112: =ROUND($L$112*$K$112,2) -> 19800 | BL112: 4 | BM112: -2124470448
F113: Montáž a demontáž dočasných dopravních vodících zařízení Příplatek za první a každý další den použití dočasných dopravních vodících zařízení k ceně 32-1116 | AT113: PP | AU113: 2
C114: 10 | D114: K | E114: 913911113 | F114: Montáž a demontáž akumulátoru dočasného dopravního značení olověného 12 V/180 Ah | J114: kus | K114: 2 | L114: 550 | N114: =ROUND($L$114*$K$114,2) -> 1100 | R114: CS ÚRS 2013 01 | U114: základní | X114: 0 | Y114: =$X$114*$K$114 -> 0 | Z114: 0 | AA114: =$Z$114*$K$114 -> 0 | AR114: 4 | AT114: K | AU114: 2 | AY114: ROZPOCET | BE114: =IF($U$114="základní",$N$114,0) -> 1100 | BF114: =IF($U$114="snížená",$N$114,0) -> 0 | BG114: =IF($U$114="zákl. přenesená",$N$114,0) -> 0 | BH114: =IF($U$114="sníž. přenesená",$N$114,0) -> 0 | BI114: =IF($U$114="nulová",$N$114,0) -> 0 | BJ114: 1 | BK114: =ROUND($L$114*$K$114,2) -> 1100 | BL114: 4 | BM114: -1743600311
F115: Montáž a demontáž akumulátoru dočasného dopravního značení olověného 12 V/180 Ah | AT115: PP | AU115: 2
F116: "kzábraně Z2 s VS"2 | K116: 2 | AT116: VV | AU116: 2 | AV116: 2 | AW116: -1 | AX116: 1 | AY116: ROZPOCET
C117: 11 | D117: K | E117: 913911213 | F117: Příplatek k dočasnému akumulátor 12V/180 Ah za první a ZKD den použití | J117: kus | K117: 120 | L117: 5.5 | N117: =ROUND($L$117*$K$117,2) -> 660 | R117: CS ÚRS 2013 01 | U117: základní | X117: 0 | Y117: =$X$117*$K$117 -> 0 | Z117: 0 | AA117: =$Z$117*$K$117 -> 0 | AR117: 4 | AT117: K | AU117: 2 | AY117: ROZPOCET | BE117: =IF($U$117="základní",$N$117,0) -> 660 | BF117: =IF($U$117="snížená",$N$117,0) -> 0 | BG117: =IF($U$117="zákl. přenesená",$N$117,0) -> 0 | BH117: =IF($U$117="sníž. přenesená",$N$117,0) -> 0 | BI117: =IF($U$117="nulová",$N$117,0) -> 0 | BJ117: 1 | BK117: =ROUND($L$117*$K$117,2) -> 660 | BL117: 4 | BM117: -493348914
F118: Příplatek k dočasnému akumulátor 12V/180 Ah za první a ZKD den použití | AT118: PP | AU118: 2
F119: "k zábraně Z2 a VS"2*60"dnů" | K119: 120 | AT119: VV | AU119: 2 | AV119: 2 | AW119: -1 | AX119: 1 | AY119: ROZPOCET

Sheet C- SO 000 - VEDLEJŠÍ A OS...
D1: List obsahuje: | F1: 1) Krycí list soupisu | H1: 2) Rekapitulace | L1: 3) Soupis prací | O1: Zpět na list: | S1: Rekapitulace stavby
C2: optimalizováno pro tisk sestav ve formátu A4 - na výšku | S2: >> skryté sloupce << | AT2: {4C6443E4-29F3-45B7-853E-7E0E695111C7}
AT3: 2
C4: KRYCÍ LIST SOUPISU | T4: v --- níže se nacházejí doplnkové a pomocné údaje k sestavám --- v | AT4: False
D6: Stavba: | F6: ='Rekapitulace stavby'!$K$6 -> 120271 - Vypracování projektové dokumentace na výstavbu chodníku na ulici Zauliční
D7: Objekt: | F7: C- SO 000 - VEDLEJŠÍ A OSTATNÍ NÁKLADY
D9: KSO: | F9: 822 29
D10: Místo: | M10: Datum: | O10: ='Rekapitulace stavby'!$AN$8 -> 09.04.2014
D12: Zadavatel: | M12: IČ:
E13: Úmob Krásné Pole | M13: DIČ:
D15: Uchazeč: | M15: IČ: | O15: =IF('Rekapitulace stavby'!$AN$13="","",'Rekapitulace stavby'!$AN$13) -> Vyplň údaj
E16: =IF('Rekapitulace stavby'!$E$14="","",'Rekapitulace stavby'!$E$14) -> Vyplň údaj | M16: DIČ: | O16: =IF('Rekapitulace stavby'!$AN$14="","",'Rekapitulace stavby'!$AN$14) -> Vyplň údaj
D18: Projektant: | M18: IČ:
E19: Dopravoprojekt Ostrava spol. s r.o. | M19: DIČ:
D21: Poznámka:
D25: Cena bez DPH | M25: =ROUNDUP($N$71,2) -> 437740
D27: DPH | E27: základní | F27: 0.21 | G27: ze | H27: =SUM($BE$71:$BE$111) -> 437740 | M27: =SUM($BE$71:$BE$111)*$F$27 -> 91925.4
E28: snížená | F28: 0.15 | G28: ze | H28: =SUM($BF$71:$BF$111) -> 0 | M28: =SUM($BF$71:$BF$111)*$F$28 -> 0
E29: zákl. přenesená | F29: 0.21 | G29: ze | H29: =SUM($BG$71:$BG$111) -> 0 | M29: 0
E30: sníž. přenesená | F30: 0.15 | G30: ze | H30: =SUM($BH$71:$BH$111) -> 0 | M30: 0
E31: nulová | F31: 0 | G31: ze | H31: =SUM($BI$71:$BI$111) -> 0 | M31: 0
D33: Cena s DPH | G33: v | H33: CZK | L33: =ROUNDUP(SUM($M$25:$M$31),2) -> 529665.4
C39: REKAPITULACE ČLENĚNÍ SOUPISU PRACÍ
C41: Stavba: | F41: =$F$6 -> 120271 - Vypracování projektové dokumentace na výstavbu chodníku na ulici Zauliční
C42: Objekt: | F42: =$F$7 -> C- SO 000 - VEDLEJŠÍ A OSTATNÍ NÁKLADY
C44: Místo: | F44: =$F$10 ->  | K44: Datum: | M44: =IF($O$10="","",$O$10) -> 09.04.2014
C46: Zadavatel: | F46: =$E$13 -> Úmob Krásné Pole | K46: Projektant: | M46: =$E$19 -> Dopravoprojekt Ostrava spol. s r.o.
C47: Uchazeč: | F47: =IF($E$16="","",$E$16) -> Vyplň údaj
C49: Kód dílu - Popis | N49: Cena celkem [CZK]
C51: Náklady soupisu celkem | N51: =ROUNDUP($N$71,2) -> 437740 | AU51: -1
D52: VRN - Vedlejší rozpočtové náklady | N52: =ROUNDUP($N$92,2) -> 369240
D53: 0 - Vedlejší rozpočtové náklady | N53: =ROUNDUP($N$93,2) -> 369240
C60: SOUPIS PRACÍ
C62: Stavba: | F62: =$F$6 -> 120271 - Vypracování projektové dokumentace na výstavbu chodníku na ulici Zauliční
C63: Objekt: | F63: =$F$7 -> C- SO 000 - VEDLEJŠÍ A OSTATNÍ NÁKLADY
C65: Místo: | F65: =$F$10 ->  | K65: Datum: | M65: =IF($O$10="","",$O$10) -> 09.04.2014
C67: Zadavatel: | F67: =$E$13 -> Úmob Krásné Pole | K67: Projektant: | M67: =$E$19 -> Dopravoprojekt Ostrava spol. s r.o.
C68: Uchazeč: | F68: =IF($E$16="","",$E$16) -> Vyplň údaj
C70: PČ | D70: Typ | E70: Kód | F70: Popis | J70: MJ | K70: Množství | L70: J.cena [CZK] | N70: Cena celkem [CZK] | R70: Cenová soustava | T70: Poznámka | U70: DPH | V70: J. Nh [h] | W70: Nh celkem [h] | X70: J. hmotnost [t] | Y70: Hmotnost celkem [t] | Z70: J. suť [t] | AA70: Suť Celkem [t]
C71: Náklady soupisu celkem | N71: =$BK$71 -> 437740 | W71: =$W$72+SUM($W$73:$W$92) -> 0 | Y71: =$Y$72+SUM($Y$73:$Y$92) -> 0 | AA71: =$AA$72+SUM($AA$73:$AA$92) -> 0 | AT71: D | AU71: -1 | BK71: =$BK$72+SUM($BK$73:$BK$92) -> 437740
C72: 1 | D72: K | E72: 999999R01 | F72: Zhotovení geometrického plánu | J72: soub | K72: 1 | L72: 12500 | N72: =ROUND($L$72*$K$72,2) -> 12500 | U72: základní | X72: 0 | Y72: =$X$72*$K$72 -> 0 | Z72: 0 | AA72: =$Z$72*$K$72 -> 0 | AR72: 262144 | AT72: K | AU72: 0 | AY72: ROZPOCET | BE72: =IF($U$72="základní",$N$72,0) -> 12500 | BF72: =IF($U$72="snížená",$N$72,0) -> 0 | BG72: =IF($U$72="zákl. přenesená",$N$72,0) -> 0 | BH72: =IF($U$72="sníž. přenesená",$N$72,0) -> 0 | BI72: =IF($U$72="nulová",$N$72,0) -> 0 | BJ72: 1 | BK72: =ROUND($L$72*$K$72,2) -> 12500 | BL72: 262144 | BM72: 1524992677
F73: Zhotovení geometrického plánu | AT73: PP | AU73: 0
C74: 2 | D74: K | E74: 999999R04 | F74: Pomocné práce pro ochranu stávajících inženýrských sítí | J74: soub | K74: 1 | L74: 6500 | N74: =ROUND($L$74*$K$74,2) -> 6500 | U74: základní | X74: 0 | Y74: =$X$74*$K$74 -> 0 | Z74: 0 | AA74: =$Z$74*$K$74 -> 0 | AR74: 262144 | AT74: K | AU74: 0 | AY74: ROZPOCET | BE74: =IF($U$74="základní",$N$74,0) -> 6500 | BF74: =IF($U$74="snížená",$N$74,0) -> 0 | BG74: =IF($U$74="zákl. přenesená",$N$74,0) -> 0 | BH74: =IF($U$74="sníž. přenesená",$N$74,0) -> 0 | BI74: =IF($U$74="nulová",$N$74,0) -> 0 | BJ74: 1 | BK74: =ROUND($L$74*$K$74,2) -> 6500 | BL74: 262144 | BM74: 1947821875
F75: Pomocné práce pro ochranu stávajících inženýrských sítí | AT75: PP | AU75: 0
C76: 3 | D76: K | E76: 999999R07 | F76: Zkoušení konstrukcí a prací zkušebnou zhotovitele | J76: soubor | K76: 1 | L76: 7500 | N76: =ROUND($L$76*$K$76,2) -> 7500 | U76: základní | X76: 0 | Y76: =$X$76*$K$76 -> 0 | Z76: 0 | AA76: =$Z$76*$K$76 -> 0 | AR76: 262144 | AT76: K | AU76: 0 | AY76: ROZPOCET | BE76: =IF($U$76="základní",$N$76,0) -> 7500 | BF76: =IF($U$76="snížená",$N$76,0) -> 0 | BG76: =IF($U$76="zákl. přenesená",$N$76,0) -> 0 | BH76: =IF($U$76="sníž. přenesená",$N$76,0) -> 0 | BI76: =IF($U$76="nulová",$N$76,0) -> 0 | BJ76: 1 | BK76: =ROUND($L$76*$K$76,2) -> 7500 | BL76: 262144 | BM76: 1508221051
F77: Zkoušení konstrukcí a prací zkušebnou zhotovitele | AT77: PP | AU77: 0
C78: 4 | D78: K | E78: 999999R08 | F78: Zkoušení konstrukcí a prací nezávislou zkušebnou | J78: soubor | K78: 1 | L78: 7500 | N78: =ROUND($L$78*$K$78,2) -> 7500 | U78: základní | X78: 0 | Y78: =$X$78*$K$78 -> 0 | Z78: 0 | AA78: =$Z$78*$K$78 -> 0 | AR78: 262144 | AT78: K | AU78: 0 | AY78: ROZPOCET | BE78: =IF($U$78="základní",$N$78,0) -> 7500 | BF78: =IF($U$78="snížená",$N$78,0) -> 0 | BG78: =IF($U$78="zákl. přenesená",$N$78,0) -> 0 | BH78: =IF($U$78="sníž. přenesená",$N$78,0) -> 0 | BI78: =IF($U$78="nulová",$N$78,0) -> 0 | BJ78: 1 | BK78: =ROUND($L$78*$K$78,2) -> 7500 | BL78: 262144 | BM78: 1689926748
F79: Zkoušení konstrukcí a prací nezávislou zkušebnou | AT79: PP | AU79: 0
C80: 5 | D80: K | E80: 99999R003 | F80: Zřízení nebo zajištění přístupových cest k stáv. nemovitostem | J80: soub | K80: 1 | L80: 4500 | N80: =ROUND($L$80*$K$80,2) -> 4500 | U80: základní | X80: 0 | Y80: =$X$80*$K$80 -> 0 | Z80: 0 | AA80: =$Z$80*$K$80 -> 0 | AR80: 262144 | AT80: K | AU80: 0 | AY80: ROZPOCET | BE80: =IF($U$80="základní",$N$80,0) -> 4500 | BF80: =IF($U$80="snížená",$N$80,0) -> 0 | BG80: =IF($U$80="zákl. přenesená",$N$80,0) -> 0 | BH80: =IF($U$80="sníž. přenesená",$N$80,0) -> 0 | BI80: =IF($U$80="nulová",$N$80,0) -> 0 | BJ80: 1 | BK80: =ROUND($L$80*$K$80,2) -> 4500 | BL80: 262144 | BM80: -1086488061
F81: Zřízení nebo zajištění přístupových cest | AT81: PP | AU81: 0
C82: 6 | D82: K | E82: 99999R004 | F82: Vytyčení stávajících inženýrských sítí | J82: soub | K82: 1 | L82: 9500 | N82: =ROUND($L$82*$K$82,2) -> 9500 | U82: základní | X82: 0 | Y82: =$X$82*$K$82 -> 0 | Z82: 0 | AA82: =$Z$82*$K$82 -> 0 | AR82: 262144 | AT82: K | AU82: 0 | AY82: ROZPOCET | BE82: =IF($U$82="základní",$N$82,0) -> 9500 | BF82: =IF($U$82="snížená",$N$82,0) -> 0 | BG82: =IF($U$82="zákl. přenesená",$N$82,0) -> 0 | BH82: =IF($U$82="sníž. přenesená",$N$82,0) -> 0 | BI82: =IF($U$82="nulová",$N$82,0) -> 0 | BJ82: 1 | BK82: =ROUND($L$82*$K$82,2) -> 9500 | BL82: 262144 | BM82: 906972388
F83: Vytyčení stávajících inženýrských sítí | AT83: PP | AU83: 0
F84: Poznámka k položce: Vytýcení stávajících podzemních inženýrských sítí pred zahájením zemních prací a preložek | AT84: P | AU84: 0
C85: 7 | D85: K | E85: 99999R007 | F85: Geodetické práce, zaměření | J85: soub | K85: 1 | L85: 10000 | N85: =ROUND($L$85*$K$85,2) -> 10000 | U85: základní | X85: 0 | Y85: =$X$85*$K$85 -> 0 | Z85: 0 | AA85: =$Z$85*$K$85 -> 0 | AR85: 262144 | AT85: K | AU85: 0 | AY85: ROZPOCET | BE85: =IF($U$85="základní",$N$85,0) -> 10000 | BF85: =IF($U$85="snížená",$N$85,0) -> 0 | BG85: =IF($U$85="zákl. přenesená",$N$85,0) -> 0 | BH85: =IF($U$85="sníž. přenesená",$N$85,0) -> 0 | BI85: =IF($U$85="nulová",$N$85,0) -> 0 | BJ85: 1 | BK85: =ROUND($L$85*$K$85,2) -> 10000 | BL85: 262144 | BM85: -1297422950
F86: Geodetické práce, zaměření | AT86: PP | AU86: 0
F87: Poznámka k položce: Vytýcení obvodu stavenište, objektů stavby a pevných vytycovacích bodu vcetne fixace a obnovení zhotovitelem. Vyhotovení zaměření skutečho provedení | AT87: P | AU87: 0
C88: 8 | D88: K | E88: 99999R014 | F88: Náklady spojené s vybudováním, provozem a odstraněním ZS, vč. provozorního oplocení a ohrazení | J88: soub | K88: 1 | L88: 6500 | N88: =ROUND($L$88*$K$88,2) -> 6500 | U88: základní | X88: 0 | Y88: =$X$88*$K$88 -> 0 | Z88: 0 | AA88: =$Z$88*$K$88 -> 0 | AR88: 262144 | AT88: K | AU88: 0 | AY88: ROZPOCET | BE88: =IF($U$88="základní",$N$88,0) -> 6500 | BF88: =IF($U$88="snížená",$N$88,0) -> 0 | BG88: =IF($U$88="zákl. přenesená",$N$88,0) -> 0 | BH88: =IF($U$88="sníž. přenesená",$N$88,0) -> 0 | BI88: =IF($U$88="nulová",$N$88,0) -> 0 | BJ88: 1 | BK88: =ROUND($L$88*$K$88,2) -> 6500 | BL88: 262144 | BM88: -555849052
C89: 9 | D89: K | E89: 99999R015 | F89: Vypracování DSPS | J89: soub | K89: 1 | L89: 2500 | N89: =ROUND($L$89*$K$89,2) -> 2500 | U89: základní | X89: 0 | Y89: =$X$89*$K$89 -> 0 | Z89: 0 | AA89: =$Z$89*$K$89 -> 0 | AR89: 262144 | AT89: K | AU89: 0 | AY89: ROZPOCET | BE89: =IF($U$89="základní",$N$89,0) -> 2500 | BF89: =IF($U$89="snížená",$N$89,0) -> 0 | BG89: =IF($U$89="zákl. přenesená",$N$89,0) -> 0 | BH89: =IF($U$89="sníž. přenesená",$N$89,0) -> 0 | BI89: =IF($U$89="nulová",$N$89,0) -> 0 | BJ89: 1 | BK89: =ROUND($L$89*$K$89,2) -> 2500 | BL89: 262144 | BM89: 1697394084
C90: 10 | D90: K | E90: 99999R016 | F90: Náklady publicity | J90: soub | K90: 1 | L90: 1000 | N90: =ROUND($L$90*$K$90,2) -> 1000 | U90: základní | X90: 0 | Y90: =$X$90*$K$90 -> 0 | Z90: 0 | AA90: =$Z$90*$K$90 -> 0 | AR90: 262144 | AT90: K | AU90: 0 | AY90: ROZPOCET | BE90: =IF($U$90="základní",$N$90,0) -> 1000 | BF90: =IF($U$90="snížená",$N$90,0) -> 0 | BG90: =IF($U$90="zákl. přenesená",$N$90,0) -> 0 | BH90: =IF($U$90="sníž. přenesená",$N$90,0) -> 0 | BI90: =IF($U$90="nulová",$N$90,0) -> 0 | BJ90: 1 | BK90: =ROUND($L$90*$K$90,2) -> 1000 | BL90: 262144 | BM90: -1559096874
C91: 11 | D91: K | E91: 99999R017 | F91: Pořízení fotodokumentace | J91: soub | K91: 1 | L91: 500 | N91: =ROUND($L$91*$K$91,2) -> 500 | U91: základní | X91: 0 | Y91: =$X$91*$K$91 -> 0 | Z91: 0 | AA91: =$Z$91*$K$91 -> 0 | AR91: 262144 | AT91: K | AU91: 0 | AY91: ROZPOCET | BE91: =IF($U$91="základní",$N$91,0) -> 500 | BF91: =IF($U$91="snížená",$N$91,0) -> 0 | BG91: =IF($U$91="zákl. přenesená",$N$91,0) -> 0 | BH91: =IF($U$91="sníž. přenesená",$N$91,0) -> 0 | BI91: =IF($U$91="nulová",$N$91,0) -> 0 | BJ91: 1 | BK91: =ROUND($L$91*$K$91,2) -> 500 | BL91: 262144 | BM91: 1900977909
D92: VRN - Vedlejší rozpočtové náklady | N92: =$BK$92 -> 369240 | W92: =$W$93 -> 0 | Y92: =$Y$93 -> 0 | AA92: =$AA$93 -> 0 | AR92: 5 | AT92: D | AU92: 0 | AY92: ROZPOCET | BK92: =$BK$93 -> 369240
D93: 0 - Vedlejší rozpočtové náklady | N93: =$BK$93 -> 369240 | W93: =SUM($W$94:$W$111) -> 0 | Y93: =SUM($Y$94:$Y$111) -> 0 | AA93: =SUM($AA$94:$AA$111) -> 0 | AR93: 5 | AT93: D | AU93: 1 | AY93: ROZPOCET | BK93: =SUM($BK$94:$BK$111) -> 369240
C94: 12 | D94: K | E94: 05000100R | F94: Finanční náklady spojené s výkupem pozemků | J94: m2 | K94: 56 | L94: 1040 | N94: =ROUND($L$94*$K$94,2) -> 58240 | U94: základní | X94: 0 | Y94: =$X$94*$K$94 -> 0 | Z94: 0 | AA94: =$Z$94*$K$94 -> 0 | AR94: 524288 | AT94: K | AU94: 2 | AY94: ROZPOCET | BE94: =IF($U$94="základní",$N$94,0) -> 58240 | BF94: =IF($U$94="snížená",$N$94,0) -> 0 | BG94: =IF($U$94="zákl. přenesená",$N$94,0) -> 0 | BH94: =IF($U$94="sníž. přenesená",$N$94,0) -> 0 | BI94: =IF($U$94="nulová",$N$94,0) -> 0 | BJ94: 1 | BK94: =ROUND($L$94*$K$94,2) -> 58240 | BL94: 524288 | BM94: 923791667
F95: Finanční náklady s výkupem pozemků | AT95: PP | AU95: 2
F96: "Náklady na 1m2 - 1040Kč" | AT96: VV | AU96: 2 | AV96: 1 | AW96: -1 | AX96: 0 | AY96: ROZPOCET
F97: "parcela č. 726/1"7"m2" | K97: 7 | AT97: VV | AU97: 2 | AV97: 2 | AW97: -1 | AX97: 0 | AY97: ROZPOCET
F98: "parcela č. 725"4"m2" | K98: 4 | AT98: VV | AU98: 2 | AV98: 2 | AW98: -1 | AX98: 0 | AY98: ROZPOCET
F99: "parcela č. 2251/2" 45"m2" | K99: 45 | AT99: VV | AU99: 2 | AV99: 2 | AW99: -1 | AX99: 0 | AY99: ROZPOCET
F100: Součet | K100: 56 | AT100: VV | AU100: 2 | AV100: 4 | AW100: -1 | AX100: 1 | AY100: ROZPOCET
C101: 13 | D101: K | E101: 05000101R | F101: Přeložky sloupů Telefonica ČR | J101: kus | K101: 3 | L101: 77000 | N101: =ROUND($L$101*$K$101,2) -> 231000 | U101: základní | X101: 0 | Y101: =$X$101*$K$101 -> 0 | Z101: 0 | AA101: =$Z$101*$K$101 -> 0 | AR101: 524288 | AT101: K | AU101: 2 | AY101: ROZPOCET | BE101: =IF($U$101="základní",$N$101,0) -> 231000 | BF101: =IF($U$101="snížená",$N$101,0) -> 0 | BG101: =IF($U$101="zákl. přenesená",$N$101,0) -> 0 | BH101: =IF($U$101="sníž. přenesená",$N$101,0) -> 0 | BI101: =IF($U$101="nulová",$N$101,0) -> 0 | BJ101: 1 | BK101: =ROUND($L$101*$K$101,2) -> 231000 | BL101: 524288 | BM101: -2127563743
F102: Finanční náklady s výkupem pozemků | AT102: PP | AU102: 2
F103: "km 0,000"1 | K103: 1 | AT103: VV | AU103: 2 | AV103: 2 | AW103: -1 | AX103: 0 | AY103: ROZPOCET
F104: "km 0,163"1 | K104: 1 | AT104: VV | AU104: 2 | AV104: 2 | AW104: -1 | AX104: 0 | AY104: ROZPOCET
F105: "km 0,305-sloup bude přeložen na nálady telefonica ČR" | AT105: VV | AU105: 2 | AV105: 1 | AW105: -1 | AX105: 0 | AY105: ROZPOCET
F106: "km 0,475"1 | K106: 1 | AT106: VV | AU106: 2 | AV106: 2 | AW106: -1 | AX106: 0 | AY106: ROZPOCET
F107: Součet | K107: 3 | AT107: VV | AU107: 2 | AV107: 4 | AW107: -1 | AX107: 1 | AY107: ROZPOCET
C108: 14 | D108: K | E108: 05000102R | F108: Přeložky sloupů ČEZ | J108: kus | K108: 1 | L108: 80000 | N108: =ROUND($L$108*$K$108,2) -> 80000 | U108: základní | X108: 0 | Y108: =$X$108*$K$108 -> 0 | Z108: 0 | AA108: =$Z$108*$K$108 -> 0 | AR108: 524288 | AT108: K | AU108: 2 | AY108: ROZPOCET | BE108: =IF($U$108="základní",$N$108,0) -> 80000 | BF108: =IF($U$108="snížená",$N$108,0) -> 0 | BG108: =IF($U$108="zákl. přenesená",$N$108,0) -> 0 | BH108: =IF($U$108="sníž. přenesená",$N$108,0) -> 0 | BI108: =IF($U$108="nulová",$N$108,0) -> 0 | BJ108: 1 | BK108: =ROUND($L$108*$K$108,2) -> 80000 | BL108: 524288 | BM108: -1839471535
F109: Finanční náklady s výkupem pozemků | AT109: PP | AU109: 2
F110: "km 0,105"1 | K110: 1 | AT110: VV | AU110: 2 | AV110: 2 | AW110: -1 | AX110: 1 | AY110: ROZPOCET
F111: Součet | K111: 1 | AT111: VV | AU111: 2 | AV111: 4 | AW111: -1 | AX111: 0 | AY111: ROZPOCET

Sheet C - SO 121 - CHODNÍKY
D1: List obsahuje: | F1: 1) Krycí list soupisu | H1: 2) Rekapitulace | L1: 3) Soupis prací | O1: Zpět na list: | S1: Rekapitulace stavby
C2: optimalizováno pro tisk sestav ve formátu A4 - na výšku | S2: >> skryté sloupce << | AT2: {825ADD61-98A8-4455-91E3-8EB0D98D8DF6}
AT3: 2
C4: KRYCÍ LIST SOUPISU | T4: v --- níže se nacházejí doplnkové a pomocné údaje k sestavám --- v | AT4: False
D6: Stavba: | F6: ='Rekapitulace stavby'!$K$6 -> 120271 - Vypracování projektové dokumentace na výstavbu chodníku na ulici Zauliční
D7: Objekt: | F7: C - SO 121 - CHODNÍKY
D9: KSO: | F9: 822 59
D10: Místo: | M10: Datum: | O10: ='Rekapitulace stavby'!$AN$8 -> 09.04.2014
D12: Zadavatel: | M12: IČ:
E13: Úmob Krásné Pole | M13: DIČ:
D15: Uchazeč: | M15: IČ: | O15: =IF('Rekapitulace stavby'!$AN$13="","",'Rekapitulace stavby'!$AN$13) -> Vyplň údaj
E16: =IF('Rekapitulace stavby'!$E$14="","",'Rekapitulace stavby'!$E$14) -> Vyplň údaj | M16: DIČ: | O16: =IF('Rekapitulace stavby'!$AN$14="","",'Rekapitulace stavby'!$AN$14) -> Vyplň údaj
D18: Projektant: | M18: IČ:
E19: Dopravoprojekt Ostrava spol. s r.o. | M19: DIČ:
D21: Poznámka:
D25: Cena bez DPH | M25: =ROUNDUP($N$82,2) -> 1205716.05
D27: DPH | E27: základní | F27: 0.21 | G27: ze | H27: =SUM($BE$82:$BE$415) -> 1205716.05 | M27: =SUM($BE$82:$BE$415)*$F$27 -> 253200.3705
E28: snížená | F28: 0.15 | G28: ze | H28: =SUM($BF$82:$BF$415) -> 0 | M28: =SUM($BF$82:$BF$415)*$F$28 -> 0
E29: zákl. přenesená | F29: 0.21 | G29: ze | H29: =SUM($BG$82:$BG$415) -> 0 | M29: 0
E30: sníž. přenesená | F30: 0.15 | G30: ze | H30: =SUM($BH$82:$BH$415) -> 0 | M30: 0
E31: nulová | F31: 0 | G31: ze | H31: =SUM($BI$82:$BI$415) -> 0 | M31: 0
D33: Cena s DPH | G33: v | H33: CZK | L33: =ROUNDUP(SUM($M$25:$M$31),2) -> 1458916.43
C39: REKAPITULACE ČLENĚNÍ SOUPISU PRACÍ
C41: Stavba: | F41: =$F$6 -> 120271 - Vypracování projektové dokumentace na výstavbu chodníku na ulici Zauliční
C42: Objekt: | F42: =$F$7 -> C - SO 121 - CHODNÍKY
C44: Místo: | F44: =$F$10 ->  | K44: Datum: | M44: =IF($O$10="","",$O$10) -> 09.04.2014
C46: Zadavatel: | F46: =$E$13 -> Úmob Krásné Pole | K46: Projektant: | M46: =$E$19 -> Dopravoprojekt Ostrava spol. s r.o.
C47: Uchazeč: | F47: =IF($E$16="","",$E$16) -> Vyplň údaj
C49: Kód dílu - Popis | N49: Cena celkem [CZK]
C51: Náklady soupisu celkem | N51: =ROUNDUP($N$82,2) -> 1205716.05 | AU51: -1
D52: HSV - Práce a dodávky HSV | N52: =ROUNDUP($N$83,2) -> 1203843.05
D53: 1 - Zemní práce | N53: =ROUNDUP($N$84,2) -> 236682.2
D54: 2 - Zakládání | N54: =ROUNDUP($N$219,2) -> 1620
D55: 3 - Svislé a kompletní konstrukce | N55: =ROUNDUP($N$225,2) -> 24078.63
D56: 4 - Vodorovné konstrukce | N56: =ROUNDUP($N$240,2) -> 100
D57: 5 - Komunikace | N57: =ROUNDUP($N$244,2) -> 612116.3
D58: 8 - Trubní vedení | N58: =ROUNDUP($N$304,2) -> 60589
D59: 9 - Ostatní konstrukce a práce-bourání | N59: =ROUNDUP($N$339,2) -> 268656.92
D60: 99 - Přesun hmot | N60: =ROUNDUP($N$391,2) -> 118165.77
D61: PSV - Práce a dodávky PSV | N61: =ROUNDUP($N$405,2) -> 100
D62: 722 - Zdravotechnika - vnitřní vodovod | N62: =ROUNDUP($N$406,2) -> 100
D63: M - Práce a dodávky M | N63: =ROUNDUP($N$410,2) -> 1773
D64: 23-M - Montáže potrubí | N64: =ROUNDUP($N$411,2) -> 1773
C71: SOUPIS PRACÍ
C73: Stavba: | F73: =$F$6 -> 120271 - Vypracování projektové dokumentace na výstavbu chodníku na ulici Zauliční
C74: Objekt: | F74: =$F$7 -> C - SO 121 - CHODNÍKY
C76: Místo: | F76: =$F$10 ->  | K76: Datum: | M76: =IF($O$10="","",$O$10) -> 09.04.2014
C78: Zadavatel: | F78: =$E$13 -> Úmob Krásné Pole | K78: Projektant: | M78: =$E$19 -> Dopravoprojekt Ostrava spol. s r.o.
C79: Uchazeč: | F79: =IF($E$16="","",$E$16) -> Vyplň údaj
C81: PČ | D81: Typ | E81: Kód | F81: Popis | J81: MJ | K81: Množství | L81: J.cena [CZK] | N81: Cena celkem [CZK] | R81: Cenová soustava | T81: Poznámka | U81: DPH | V81: J. Nh [h] | W81: Nh celkem [h] | X81: J. hmotnost [t] | Y81: Hmotnost celkem [t] | Z81: J. suť [t] | AA81: Suť Celkem [t]
C82: Náklady soupisu celkem | N82: =$BK$82 -> 1205716.05 | W82: =$W$83+$W$405+$W$410 -> 0 | Y82: =$Y$83+$Y$405+$Y$410 -> 531.1683762 | AA82: =$AA$83+$AA$405+$AA$410 -> 262.584335 | AT82: D | AU82: -1 | BK82: =$BK$83+$BK$405+$BK$410 -> 1205716.05
D83: HSV - Práce a dodávky HSV | N83: =$BK$83 -> 1203843.05 | W83: =$W$84+$W$219+$W$225+$W$240+$W$244+$W$304+$W$339 -> 0 | Y83: =$Y$84+$Y$219+$Y$225+$Y$240+$Y$244+$Y$304+$Y$339 -> 531.1648762 | AA83: =$AA$84+$AA$219+$AA$225+$AA$240+$AA$244+$AA$304+$AA$339 -> 262.556075 | AR83: 1 | AT83: D | AU83: 0 | AY83: ROZPOCET | BK83: =$BK$84+$BK$219+$BK$225+$BK$240+$BK$244+$BK$304+$BK$339 -> 1203843.05
D84: 1 - Zemní práce | N84: =$BK$84 -> 236682.2 | W84: =SUM($W$85:$W$218) -> 0 | Y84: =SUM($Y$85:$Y$218) -> 10.114488 | AA84: =SUM($AA$85:$AA$218) -> 258.967075 | AR84: 1 | AT84: D | AU84: 1 | AY84: ROZPOCET | BK84: =SUM($BK$85:$BK$218) -> 236682.2
C85: 1 | D85: K | E85: 111301111 | F85: Sejmutí drnu tl do 100 mm s přemístěním do 50 m nebo naložením na dopravní prostředek | J85: m2 | K85: 76.8 | L85: 30 | N85: =ROUND($L$85*$K$85,2) -> 2304 | R85: CS ÚRS 2013 01 | U85: základní | X85: 0 | Y85: =$X$85*$K$85 -> 0 | Z85: 0 | AA85: =$Z$85*$K$85 -> 0 | AR85: 4 | AT85: K | AU85: 2 | AY85: ROZPOCET | BE85: =IF($U$85="základní",$N$85,0) -> 2304 | BF85: =IF($U$85="snížená",$N$85,0) -> 0 | BG85: =IF($U$85="zákl. přenesená",$N$85,0) -> 0 | BH85: =IF($U$85="sníž. přenesená",$N$85,0) -> 0 | BI85: =IF($U$85="nulová",$N$85,0) -> 0 | BJ85: 1 | BK85: =ROUND($L$85*$K$85,2) -> 2304 | BL85: 4 | BM85: 968814083
F86: Sejmutí drnu tl do 100 mm s přemístěním do 50 m nebo naložením na dopravní prostředek | AT86: PP | AU86: 2
F87: "sejmutí drnu tl. 0,1m" 48+16,3+12,5 | K87: 76.8 | AT87: VV | AU87: 2 | AV87: 2 | AW87: -1 | AX87: 1 | AY87: ROZPOCET
C88: 2 | D88: K | E88: 113106123 | F88: Rozebrání dlažeb komunikací pro pěší ze zámkových dlaždic | J88: m2 | K88: 237.9 | L88: 15 | N88: =ROUND($L$88*$K$88,2) -> 3568.5 | R88: CS ÚRS 2013 01 | U88: základní | X88: 0 | Y88: =$X$88*$K$88 -> 0 | Z88: 0.26 | AA88: =$Z$88*$K$88 -> 61.854 | AR88: 4 | AT88: K | AU88: 2 | AY88: ROZPOCET | BE88: =IF($U$88="základní",$N$88,0) -> 3568.5 | BF88: =IF($U$88="snížená",$N$88,0) -> 0 | BG88: =IF($U$88="zákl. přenesená",$N$88,0) -> 0 | BH88: =IF($U$88="sníž. přenesená",$N$88,0) -> 0 | BI88: =IF($U$88="nulová",$N$88,0) -> 0 | BJ88: 1 | BK88: =ROUND($L$88*$K$88,2) -> 3568.5 | BL88: 4 | BM88: 81938975
F89: Rozebrání dlažeb komunikací pro pěší ze zámkových dlaždic | AT89: PP | AU89: 2
F90: "rozebrání dlažby parkov.stání v zú" 3*7,8 | K90: 23.4 | AT90: VV | AU90: 2 | AV90: 2 | AW90: -1 | AX90: 0 | AY90: ROZPOCET
F91: "odstranění dlážděných povrchů vjezdů k nemovitostem- 1/2 z celkové plochy"232/2 | K91: 116 | AT91: VV | AU91: 2 | AV91: 2 | AW91: -1 | AX91: 0 | AY91: ROZPOCET
F92: "rozebrání dlažby chodníku v kú" 98,5 | K92: 98.5 | AT92: VV | AU92: 2 | AV92: 2 | AW92: -1 | AX92: 0 | AY92: ROZPOCET
F93: Součet | K93: 237.9 | AT93: VV | AU93: 2 | AV93: 4 | AW93: -1 | AX93: 1 | AY93: ROZPOCET
C94: 3 | D94: K | E94: 113107122 | F94: Odstranění podkladu pl do 50 m2 z kameniva drceného tl 200 mm | J94: m2 | K94: 498.8 | L94: 60 | N94: =ROUND($L$94*$K$94,2) -> 29928 | R94: CS ÚRS 2013 01 | U94: základní | X94: 0 | Y94: =$X$94*$K$94 -> 0 | Z94: 0.235 | AA94: =$Z$94*$K$94 -> 117.218 | AR94: 4 | AT94: K | AU94: 2 | AY94: ROZPOCET | BE94: =IF($U$94="základní",$N$94,0) -> 29928 | BF94: =IF($U$94="snížená",$N$94,0) -> 0 | BG94: =IF($U$94="zákl. přenesená",$N$94,0) -> 0 | BH94: =IF($U$94="sníž. přenesená",$N$94,0) -> 0 | BI94: =IF($U$94="nulová",$N$94,0) -> 0 | BJ94: 1 | BK94: =ROUND($L$94*$K$94,2) -> 29928 | BL94: 4 | BM94: 954837322
F95: Odstranění podkladu pl do 50 m2 z kameniva drceného tl 200 mm | AT95: PP | AU95: 2
F96: "podkladní vrstvy u vjezdů s živ. povrchem tl. 0,15m"76,2/2 | K96: 38.1 | AT96: VV | AU96: 2 | AV96: 2 | AW96: -1 | AX96: 0 | AY96: ROZPOCET
F97: "podkladní vrstvy u vjezdů s dlaž. povrchem tl. 0,15m"232/2 | K97: 116 | AT97: VV | AU97: 2 | AV97: 2 | AW97: -1 | AX97: 0 | AY97: ROZPOCET
F98: "podkladní vrstvy u vjezdů s bet. povrchem tl. 0,15m"51/2 | K98: 25.5 | AT98: VV | AU98: 2 | AV98: 2 | AW98: -1 | AX98: 0 | AY98: ROZPOCET
F99: "vjezdů k nemovitostem -štěrková úprava 1/2 z cel. plochy"219,6/2 | K99: 109.8 | AT99: VV | AU99: 2 | AV99: 2 | AW99: -1 | AX99: 0 | AY99: ROZPOCET
F100: "podkladní vrstvy u park. stání v zú" 3*7,8 | K100: 23.4 | AT100: VV | AU100: 2 | AV100: 2 | AW100: -1 | AX100: 0 | AY100: ROZPOCET
F101: "podkladní vrstvy - účel. kom. v km 0,400"87,5 | K101: 87.5 | AT101: VV | AU101: 2 | AV101: 2 | AW101: -1 | AX101: 0 | AY101: ROZPOCET
F102: "pokladní vrstvy- chodník v kú" 98,5 | K102: 98.5 | AT102: VV | AU102: 2 | AV102: 2 | AW102: -1 | AX102: 0 | AY102: ROZPOCET
F103: Součet | K103: 498.8 | AT103: VV | AU103: 2 | AV103: 4 | AW103: -1 | AX103: 1 | AY103: ROZPOCET
C104: 4 | D104: K | E104: 113107130 | F104: Odstranění podkladu pl do 50 m2 z betonu prostého tl 100 mm | J104: m2 | K104: 26.275 | L104: 95 | N104: =ROUND($L$104*$K$104,2) -> 2496.13 | R104: CS ÚRS 2013 01 | U104: základní | X104: 0 | Y104: =$X$104*$K$104 -> 0 | Z104: 0.185 | AA104: =$Z$104*$K$104 -> 4.860875 | AR104: 4 | AT104: K | AU104: 2 | AY104: ROZPOCET | BE104: =IF($U$104="základní",$N$104,0) -> 2496.13 | BF104: =IF($U$104="snížená",$N$104,0) -> 0 | BG104: =IF($U$104="zákl. přenesená",$N$104,0) -> 0 | BH104: =IF($U$104="sníž. přenesená",$N$104,0) -> 0 | BI104: =IF($U$104="nulová",$N$104,0) -> 0 | BJ104: 1 | BK104: =ROUND($L$104*$K$104,2) -> 2496.13 | BL104: 4 | BM104: -1782152702
F105: Odstranění podkladu pl do 50 m2 z betonu prostého tl 100 mm | AT105: PP | AU105: 2
F106: "podkladní vrstvy u vjezdů s bet. povrchem tl. 0,1m"51/2 | K106: 25.5 | AT106: VV | AU106: 2 | AV106: 2 | AW106: -1 | AX106: 0 | AY106: ROZPOCET
F107: "bourání betonu mezi park. stáním v zú a plot. podezdívkou"3,1*0,25 | K107: 0.775 | AT107: VV | AU107: 2 | AV107: 2 | AW107: -1 | AX107: 0 | AY107: ROZPOCET
F108: Součet | K108: 26.275 | AT108: VV | AU108: 2 | AV108: 4 | AW108: -1 | AX108: 1 | AY108: ROZPOCET
C109: 5 | D109: K | E109: 113107142 | F109: Odstranění podkladu pl do 50 m2 živičných tl 100 mm | J109: m2 | K109: 210.2 | L109: 85 | N109: =ROUND($L$109*$K$109,2) -> 17867 | R109: CS ÚRS 2013 01 | U109: základní | X109: 0 | Y109: =$X$109*$K$109 -> 0 | Z109: 0.181 | AA109: =$Z$109*$K$109 -> 38.0462 | AR109: 4 | AT109: K | AU109: 2 | AY109: ROZPOCET | BE109: =IF($U$109="základní",$N$109,0) -> 17867 | BF109: =IF($U$109="snížená",$N$109,0) -> 0 | BG109: =IF($U$109="zákl. přenesená",$N$109,0) -> 0 | BH109: =IF($U$109="sníž. přenesená",$N$109,0) -> 0 | BI109: =IF($U$109="nulová",$N$109,0) -> 0 | BJ109: 1 | BK109: =ROUND($L$109*$K$109,2) -> 17867 | BL109: 4 | BM109: 833447031
F110: Odstranění podkladu pl do 50 m2 živičných tl 100 mm | AT110: PP | AU110: 2
F111: "odstranění živ. povrchů vjezdů k nemovitostem- 1/2 z cel. plochy tl. 0,05m"76,2/2 | K111: 38.1 | AT111: VV | AU111: 2 | AV111: 2 | AW111: -1 | AX111: 0 | AY111: ROZPOCET
F112: "provizorní úprava na vjezdech š=0,5m za obrubou"344,2*0,5 | K112: 172.1 | AT112: VV | AU112: 2 | AV112: 2 | AW112: -1 | AX112: 0 | AY112: ROZPOCET
F113: Součet | K113: 210.2 | AT113: VV | AU113: 2 | AV113: 4 | AW113: -1 | AX113: 1 | AY113: ROZPOCET
C114: 6 | D114: K | E114: 113154113 | F114: Frézování živičného krytu tl 50 mm pruh š 0,5 m pl do 500 m2 bez překážek v trase | J114: m2 | K114: 7.5 | L114: 120 | N114: =ROUND($L$114*$K$114,2) -> 900 | R114: CS ÚRS 2013 01 | U114: základní | X114: 4e-05 | Y114: =$X$114*$K$114 -> 0.0003 | Z114: 0.128 | AA114: =$Z$114*$K$114 -> 0.96 | AR114: 4 | AT114: K | AU114: 2 | AY114: ROZPOCET | BE114: =IF($U$114="základní",$N$114,0) -> 900 | BF114: =IF($U$114="snížená",$N$114,0) -> 0 | BG114: =IF($U$114="zákl. přenesená",$N$114,0) -> 0 | BH114: =IF($U$114="sníž. přenesená",$N$114,0) -> 0 | BI114: =IF($U$114="nulová",$N$114,0) -> 0 | BJ114: 1 | BK114: =ROUND($L$114*$K$114,2) -> 900 | BL114: 4 | BM114: 1899485041
F115: Frézování živičného podkladu nebo krytu s naložením na dopravní prostředek plochy do 500 m2 bez překážek v trase pruhu šířky do 0,5 m, tloušťky vrstvy 50 mm | AT115: PP | AU115: 2
F116: " frézování v ZÚ "7,5 | K116: 7.5 | AT116: VV | AU116: 2 | AV116: 2 | AW116: -1 | AX116: 1 | AY116: ROZPOCET
C117: 7 | D117: K | E117: 113154254 | F117: Frézování živičného krytu tl 100 mm pruh š 1 m pl do 1000 m2 s překážkami v trase | J117: m2 | K117: 87.5 | L117: 100 | N117: =ROUND($L$117*$K$117,2) -> 8750 | R117: CS ÚRS 2013 01 | U117: základní | X117: 0.00012 | Y117: =$X$117*$K$117 -> 0.0105 | Z117: 0.256 | AA117: =$Z$117*$K$117 -> 22.4 | AR117: 4 | AT117: K | AU117: 2 | AY117: ROZPOCET | BE117: =IF($U$117="základní",$N$117,0) -> 8750 | BF117: =IF($U$117="snížená",$N$117,0) -> 0 | BG117: =IF($U$117="zákl. přenesená",$N$117,0) -> 0 | BH117: =IF($U$117="sníž. přenesená",$N$117,0) -> 0 | BI117: =IF($U$117="nulová",$N$117,0) -> 0 | BJ117: 1 | BK117: =ROUND($L$117*$K$117,2) -> 8750 | BL117: 4 | BM117: 1641840664
F118: Frézování živičného krytu tl 100 mm pruh š 1 m pl do 1000 m2 s překážkami v trase | AT118: PP | AU118: 2
F119: "frézování tl. 80mm u autobusové zastávky v km 0,400"87,5 | K119: 87.5 | AT119: VV | AU119: 2 | AV119: 2 | AW119: -1 | AX119: 1 | AY119: ROZPOCET
C120: 8 | D120: K | E120: 113202111 | F120: Vytrhání obrub krajníků obrubníků stojatých | J120: m | K120: 21.6 | L120: 20 | N120: =ROUND($L$120*$K$120,2) -> 432 | R120: CS ÚRS 2013 01 | U120: základní | X120: 0 | Y120: =$X$120*$K$120 -> 0 | Z120: 0.205 | AA120: =$Z$120*$K$120 -> 4.428 | AR120: 4 | AT120: K | AU120: 2 | AY120: ROZPOCET | BE120: =IF($U$120="základní",$N$120,0) -> 432 | BF120: =IF($U$120="snížená",$N$120,0) -> 0 | BG120: =IF($U$120="zákl. přenesená",$N$120,0) -> 0 | BH120: =IF($U$120="sníž. přenesená",$N$120,0) -> 0 | BI120: =IF($U$120="nulová",$N$120,0) -> 0 | BJ120: 1 | BK120: =ROUND($L$120*$K$120,2) -> 432 | BL120: 4 | BM120: 2125158686
F121: Vytrhání obrub s vybouráním lože, s přemístěním hmot na skládku na vzdálenost do 3 m nebo s naložením na dopravní prostředek z krajníků nebo obrubníků stojatých | AT121: PP | AU121: 2
F122: "vytrhání obrub kolem park. stání v zú" 3+3+7,8+7,8 | K122: 21.6 | AT122: VV | AU122: 2 | AV122: 2 | AW122: -1 | AX122: 1 | AY122: ROZPOCET
C123: 9 | D123: K | E123: 113203111 | F123: Vytrhání obrub z dlažebních kostek | J123: m | K123: 80 | L123: 20 | N123: =ROUND($L$123*$K$123,2) -> 1600 | R123: CS ÚRS 2013 01 | U123: základní | X123: 0 | Y123: =$X$123*$K$123 -> 0 | Z123: 0.115 | AA123: =$Z$123*$K$123 -> 9.2 | AR123: 4 | AT123: K | AU123: 2 | AY123: ROZPOCET | BE123: =IF($U$123="základní",$N$123,0) -> 1600 | BF123: =IF($U$123="snížená",$N$123,0) -> 0 | BG123: =IF($U$123="zákl. přenesená",$N$123,0) -> 0 | BH123: =IF($U$123="sníž. přenesená",$N$123,0) -> 0 | BI123: =IF($U$123="nulová",$N$123,0) -> 0 | BJ123: 1 | BK123: =ROUND($L$123*$K$123,2) -> 1600 | BL123: 4 | BM123: 564918112
F124: Vytrhání obrub s vybouráním lože, s přemístěním hmot na skládku na vzdálenost do 3 m nebo s naložením na dopravní prostředek z dlažebních kostek | AT124: PP | AU124: 2
F125: "vybourání čtyřřádku v zú" 20*4 | K125: 80 | AT125: VV | AU125: 2 | AV125: 2 | AW125: -1 | AX125: 1 | AY125: ROZPOCET
C126: 10 | D126: K | E126: 122201402 | F126: Vykopávky v zemníku na suchu v hornině tř. 3 objem do 1000 m3 | J126: m3 | K126: 116.1 | L126: 40 | N126: =ROUND($L$126*$K$126,2) -> 4644 | R126: CS ÚRS 2013 01 | U126: základní | X126: 0 | Y126: =$X$126*$K$126 -> 0 | Z126: 0 | AA126: =$Z$126*$K$126 -> 0 | AR126: 4 | AT126: K | AU126: 2 | AY126: ROZPOCET | BE126: =IF($U$126="základní",$N$126,0) -> 4644 | BF126: =IF($U$126="snížená",$N$126,0) -> 0 | BG126: =IF($U$126="zákl. přenesená",$N$126,0) -> 0 | BH126: =IF($U$126="sníž. přenesená",$N$126,0) -> 0 | BI126: =IF($U$126="nulová",$N$126,0) -> 0 | BJ126: 1 | BK126: =ROUND($L$126*$K$126,2) -> 4644 | BL126: 4 | BM126: -1004759030
F127: Vykopávky v zemníku na suchu v hornině tř. 3 objem do 1000 m3 | AT127: PP | AU127: 2
F128: "dodatečný násyp kolem obrub - chodník"77 | K128: 77 | AT128: VV | AU128: 2 | AV128: 2 | AW128: -1 | AX128: 0 | AY128: ROZPOCET
F129: "dodatečný násyp na vjezdech"34,4+2 | K129: 36.4 | AT129: VV | AU129: 2 | AV129: 2 | AW129: -1 | AX129: 0 | AY129: ROZPOCET
F130: "dodatečný násyp - uk. kom. v km 0,400"2,7 | K130: 2.7 | AT130: VV | AU130: 2 | AV130: 2 | AW130: -1 | AX130: 0 | AY130: ROZPOCET
F131: Součet | K131: 116.1 | AT131: VV | AU131: 2 | AV131: 4 | AW131: -1 | AX131: 1 | AY131: ROZPOCET
C132: 11 | D132: M | E132: 583312000 | F132: materiál vhodný do násypu | J132: t | K132: 232.2 | L132: 300 | N132: =ROUND($L$132*$K$132,2) -> 69660 | R132: CS ÚRS 2013 01 | U132: základní | X132: 0 | Y132: =$X$132*$K$132 -> 0 | Z132: 0 | AA132: =$Z$132*$K$132 -> 0 | AR132: 8 | AT132: M | AU132: 2 | AY132: ROZPOCET | BE132: =IF($U$132="základní",$N$132,0) -> 69660 | BF132: =IF($U$132="snížená",$N$132,0) -> 0 | BG132: =IF($U$132="zákl. přenesená",$N$132,0) -> 0 | BH132: =IF($U$132="sníž. přenesená",$N$132,0) -> 0 | BI132: =IF($U$132="nulová",$N$132,0) -> 0 | BJ132: 1 | BK132: =ROUND($L$132*$K$132,2) -> 69660 | BL132: 4 | BM132: 690797849
F133: kamenivo těžené zásypový materiál | AT133: PP | AU133: 2
F134: "materiál vhodný do násypu" | AT134: VV | AU134: 2 | AV134: 1 | AW134: -1 | AX134: 0 | AY134: ROZPOCET
F135: "dodatečný násyp kolem obrub - chodník"77*2 | K135: 154 | AT135: VV | AU135: 2 | AV135: 2 | AW135: -1 | AX135: 0 | AY135: ROZPOCET
F136: "dodatečný násyp na vjezdech"(34,4+2)*2 | K136: 72.8 | AT136: VV | AU136: 2 | AV136: 2 | AW136: -1 | AX136: 0 | AY136: ROZPOCET
F137: "dodatečný násyp - ulk. kom. v km 0,400"2,7 *2 | K137: 5.4 | AT137: VV | AU137: 2 | AV137: 2 | AW137: -1 | AX137: 0 | AY137: ROZPOCET
F138: Součet | K138: 232.2 | AT138: VV | AU138: 2 | AV138: 4 | AW138: -1 | AX138: 1 | AY138: ROZPOCET
C139: 12 | D139: K | E139: 130901121 | F139: Bourání kcí v hloubených vykopávkách z betonu prostého ručně | J139: m3 | K139: 0.5 | L139: 1500 | N139: =ROUND($L$139*$K$139,2) -> 750 | R139: CS ÚRS 2013 01 | U139: základní | X139: 0 | Y139: =$X$139*$K$139 -> 0 | Z139: 0 | AA139: =$Z$139*$K$139 -> 0 | AR139: 4 | AT139: K | AU139: 2 | AY139: ROZPOCET | BE139: =IF($U$139="základní",$N$139,0) -> 750 | BF139: =IF($U$139="snížená",$N$139,0) -> 0 | BG139: =IF($U$139="zákl. přenesená",$N$139,0) -> 0 | BH139: =IF($U$139="sníž. přenesená",$N$139,0) -> 0 | BI139: =IF($U$139="nulová",$N$139,0) -> 0 | BJ139: 1 | BK139: =ROUND($L$139*$K$139,2) -> 750 | BL139: 4 | BM139: -162359824
F140: Bourání kcí v hloubených vykopávkách ze zdiva z betonu prostého ručně | AT140: PP | AU140: 2
F141: "skryté bet. kce" 0,5 | K141: 0.5 | AT141: VV | AU141: 2 | AV141: 2 | AW141: -1 | AX141: 0 | AY141: ROZPOCET
F142: Součet | K142: 0.5 | AT142: VV | AU142: 2 | AV142: 4 | AW142: -1 | AX142: 1 | AY142: ROZPOCET
C143: 13 | D143: K | E143: 174101101 | F143: Zásyp jam, šachet rýh nebo kolem objektů sypaninou se zhutněním | J143: m3 | K143: 1.35 | L143: 60 | N143: =ROUND($L$143*$K$143,2) -> 81 | R143: CS ÚRS 2013 01 | U143: základní | X143: 0 | Y143: =$X$143*$K$143 -> 0 | Z143: 0 | AA143: =$Z$143*$K$143 -> 0 | AR143: 4 | AT143: K | AU143: 2 | AY143: ROZPOCET | BE143: =IF($U$143="základní",$N$143,0) -> 81 | BF143: =IF($U$143="snížená",$N$143,0) -> 0 | BG143: =IF($U$143="zákl. přenesená",$N$143,0) -> 0 | BH143: =IF($U$143="sníž. přenesená",$N$143,0) -> 0 | BI143: =IF($U$143="nulová",$N$143,0) -> 0 | BJ143: 1 | BK143: =ROUND($L$143*$K$143,2) -> 81 | BL143: 4 | BM143: -1404433738
F144: Zásyp jam, šachet rýh nebo kolem objektů sypaninou se zhutněním | AT144: PP | AU144: 2
F145: "výkop u nadzem. hydrantu v zú"1,5*0,6*1,5 | K145: 1.35 | AT145: VV | AU145: 2 | AV145: 2 | AW145: -1 | AX145: 0 | AY145: ROZPOCET
F146: Součet | K146: 1.35 | AT146: VV | AU146: 2 | AV146: 4 | AW146: -1 | AX146: 1 | AY146: ROZPOCET
C147: 14 | D147: M | E147: 583441550 | F147: štěrkodrť frakce 0-22 | J147: t | K147: 2.7 | L147: 300 | N147: =ROUND($L$147*$K$147,2) -> 810 | U147: základní | X147: 1 | Y147: =$X$147*$K$147 -> 2.7 | Z147: 0 | AA147: =$Z$147*$K$147 -> 0 | AR147: 8 | AT147: M | AU147: 2 | AY147: ROZPOCET | BE147: =IF($U$147="základní",$N$147,0) -> 810 | BF147: =IF($U$147="snížená",$N$147,0) -> 0 | BG147: =IF($U$147="zákl. přenesená",$N$147,0) -> 0 | BH147: =IF($U$147="sníž. přenesená",$N$147,0) -> 0 | BI147: =IF($U$147="nulová",$N$147,0) -> 0 | BJ147: 1 | BK147: =ROUND($L$147*$K$147,2) -> 810 | BL147: 4 | BM147: 1195024991
F148: štěrkodrť frakce 0-22 | AT148: PP | AU148: 2
F149: "výkop u nadzem. hydrantu v zú"1,5*0,6*1,5*2 | K149: 2.7 | AT149: VV | AU149: 2 | AV149: 2 | AW149: -1 | AX149: 0 | AY149: ROZPOCET
F150: Součet | K150: 2.7 | AT150: VV | AU150: 2 | AV150: 4 | AW150: -1 | AX150: 1 | AY150: ROZPOCET
C151: 15 | D151: K | E151: 132201101 | F151: Hloubení rýh š do 600 mm v hornině tř. 3 objemu do 100 m3 | J151: m3 | K151: 1.35 | L151: 400 | N151: =ROUND($L$151*$K$151,2) -> 540 | R151: CS ÚRS 2013 01 | U151: základní | X151: 0 | Y151: =$X$151*$K$151 -> 0 | Z151: 0 | AA151: =$Z$151*$K$151 -> 0 | AR151: 4 | AT151: K | AU151: 2 | AY151: ROZPOCET | BE151: =IF($U$151="základní",$N$151,0) -> 540 | BF151: =IF($U$151="snížená",$N$151,0) -> 0 | BG151: =IF($U$151="zákl. přenesená",$N$151,0) -> 0 | BH151: =IF($U$151="sníž. přenesená",$N$151,0) -> 0 | BI151: =IF($U$151="nulová",$N$151,0) -> 0 | BJ151: 1 | BK151: =ROUND($L$151*$K$151,2) -> 540 | BL151: 4 | BM151: -849099434
F152: Hloubení rýh š do 600 mm v hornině tř. 3 objemu do 100 m3 | AT152: PP | AU152: 2
F153: "výkop u nadzem. hydrantu v zú"1,5*0,6*1,5 | K153: 1.35 | AT153: VV | AU153: 2 | AV153: 2 | AW153: -1 | AX153: 1 | AY153: ROZPOCET
F154: Součet | K154: 1.35 | AT154: VV | AU154: 2 | AV154: 4 | AW154: -1 | AX154: 0 | AY154: ROZPOCET
C155: 16 | D155: K | E155: 122202202 | F155: Odkopávky a prokopávky nezapažené pro silnice objemu do 1000 m3 v hornině tř. 3 | J155: m3 | K155: 172.7 | L155: 40 | N155: =ROUND($L$155*$K$155,2) -> 6908 | R155: CS ÚRS 2013 01 | U155: základní | X155: 0 | Y155: =$X$155*$K$155 -> 0 | Z155: 0 | AA155: =$Z$155*$K$155 -> 0 | AR155: 4 | AT155: K | AU155: 2 | AY155: ROZPOCET | BE155: =IF($U$155="základní",$N$155,0) -> 6908 | BF155: =IF($U$155="snížená",$N$155,0) -> 0 | BG155: =IF($U$155="zákl. přenesená",$N$155,0) -> 0 | BH155: =IF($U$155="sníž. přenesená",$N$155,0) -> 0 | BI155: =IF($U$155="nulová",$N$155,0) -> 0 | BJ155: 1 | BK155: =ROUND($L$155*$K$155,2) -> 6908 | BL155: 4 | BM155: -729666780
F156: Odkopávky a prokopávky nezapažené pro silnice objemu do 1000 m3 v hornině tř. 3 | AT156: PP | AU156: 2
F157: "výkop - chodník"154 | K157: 154 | AT157: VV | AU157: 2 | AV157: 2 | AW157: -1 | AX157: 0 | AY157: ROZPOCET
F158: "výkop - autobus. zastávka"3,9 | K158: 3.9 | AT158: VV | AU158: 2 | AV158: 2 | AW158: -1 | AX158: 0 | AY158: ROZPOCET
F159: "výkop - úč. kom. v km 0,400"14,8 | K159: 14.8 | AT159: VV | AU159: 2 | AV159: 2 | AW159: -1 | AX159: 0 | AY159: ROZPOCET
F160: Součet | K160: 172.7 | AT160: VV | AU160: 2 | AV160: 4 | AW160: -1 | AX160: 1 | AY160: ROZPOCET
C161: 17 | D161: K | E161: 162701105 | F161: Vodorovné přemístění do 10000 m výkopku/sypaniny z horniny tř. 1 až 4 | J161: m3 | K161: 181.73 | L161: 150 | N161: =ROUND($L$161*$K$161,2) -> 27259.5 | R161: CS ÚRS 2013 01 | U161: základní | X161: 0 | Y161: =$X$161*$K$161 -> 0 | Z161: 0 | AA161: =$Z$161*$K$161 -> 0 | AR161: 4 | AT161: K | AU161: 2 | AY161: ROZPOCET | BE161: =IF($U$161="základní",$N$161,0) -> 27259.5 | BF161: =IF($U$161="snížená",$N$161,0) -> 0 | BG161: =IF($U$161="zákl. přenesená",$N$161,0) -> 0 | BH161: =IF($U$161="sníž. přenesená",$N$161,0) -> 0 | BI161: =IF($U$161="nulová",$N$161,0) -> 0 | BJ161: 1 | BK161: =ROUND($L$161*$K$161,2) -> 27259.5 | BL161: 4 | BM161: 278430307
F162: Vodorovné přemístění do 10000 m výkopku/sypaniny z horniny tř. 1 až 4 | AT162: PP | AU162: 2
F163: "skládka ve vzdálenosti 23km" | AT163: VV | AU163: 2 | AV163: 1 | AW163: -1 | AX163: 0 | AY163: ROZPOCET
F164: "výkop - chodník"154 | K164: 154 | AT164: VV | AU164: 2 | AV164: 2 | AW164: -1 | AX164: 0 | AY164: ROZPOCET
F165: "výkop - autobus. zastávka"3,9 | K165: 3.9 | AT165: VV | AU165: 2 | AV165: 2 | AW165: -1 | AX165: 0 | AY165: ROZPOCET
F166: "výkop - úč. kom. v km 0,400"14,8 | K166: 14.8 | AT166: VV | AU166: 2 | AV166: 2 | AW166: -1 | AX166: 0 | AY166: ROZPOCET
F167: "výkop u nadzem. hydrantu v zú"1,5*0,6*1,5 | K167: 1.35 | AT167: VV | AU167: 2 | AV167: 2 | AW167: -1 | AX167: 0 | AY167: ROZPOCET
F168: "sejmutí drnu tl. 0,1m" (48+16,3+12,5)*0,1 | K168: 7.68 | AT168: VV | AU168: 2 | AV168: 2 | AW168: -1 | AX168: 0 | AY168: ROZPOCET
F169: Součet | K169: 181.73 | AT169: VV | AU169: 2 | AV169: 4 | AW169: -1 | AX169: 1 | AY169: ROZPOCET
C170: 18 | D170: K | E170: 162701109 | F170: Příplatek k vodorovnému přemístění výkopku/sypaniny z horniny tř. 1 až 4 ZKD 1000 m přes 10000 m | J170: m3 | K170: 2362.49 | L170: 8 | N170: =ROUND($L$170*$K$170,2) -> 18899.92 | R170: CS ÚRS 2013 01 | U170: základní | X170: 0 | Y170: =$X$170*$K$170 -> 0 | Z170: 0 | AA170: =$Z$170*$K$170 -> 0 | AR170: 4 | AT170: K | AU170: 2 | AY170: ROZPOCET | BE170: =IF($U$170="základní",$N$170,0) -> 18899.92 | BF170: =IF($U$170="snížená",$N$170,0) -> 0 | BG170: =IF($U$170="zákl. přenesená",$N$170,0) -> 0 | BH170: =IF($U$170="sníž. přenesená",$N$170,0) -> 0 | BI170: =IF($U$170="nulová",$N$170,0) -> 0 | BJ170: 1 | BK170: =ROUND($L$170*$K$170,2) -> 18899.92 | BL170: 4 | BM170: -2082762683
F171: Příplatek k vodorovnému přemístění výkopku/sypaniny z horniny tř. 1 až 4 ZKD 1000 m přes 10000 m | AT171: PP | AU171: 2
F172: "13 km navíc" | AT172: VV | AU172: 2 | AV172: 1 | AW172: -1 | AX172: 0 | AY172: ROZPOCET
F173: "výkop - chodník"154 | K173: 154 | AT173: VV | AU173: 2 | AV173: 2 | AW173: -1 | AX173: 0 | AY173: ROZPOCET
F174: "výkop - autobus. zastávka"3,9 | K174: 3.9 | AT174: VV | AU174: 2 | AV174: 2 | AW174: -1 | AX174: 0 | AY174: ROZPOCET
F175: "výkop - úč. kom. v km 0,400"14,8 | K175: 14.8 | AT175: VV | AU175: 2 | AV175: 2 | AW175: -1 | AX175: 0 | AY175: ROZPOCET
F176: "výkop u nadzem. hydrantu v zú"1,5*0,6*1,5 | K176: 1.35 | AT176: VV | AU176: 2 | AV176: 2 | AW176: -1 | AX176: 0 | AY176: ROZPOCET
F177: "sejmutí drnu tl. 0,1m" (48+16,3+12,5)*0,1 | K177: 7.68 | AT177: VV | AU177: 2 | AV177: 2 | AW177: -1 | AX177: 0 | AY177: ROZPOCET
F178: Součet | K178: 181.73 | AT178: VV | AU178: 2 | AV178: 4 | AW178: -1 | AX178: 1 | AY178: ROZPOCET
F179: 181,73*13 'Přepočtené koeficientem množství | K179: 2362.49 | AT179: VV | AU179: 2 | AV179: 2 | AW179: 0 | AX179: 1 | AY179: ROZPOCET
C180: 19 | D180: K | E180: 171201201 | F180: Uložení sypaniny na skládky | J180: m3 | K180: 181.73 | L180: 10 | N180: =ROUND($L$180*$K$180,2) -> 1817.3 | R180: CS ÚRS 2013 01 | U180: základní | X180: 0 | Y180: =$X$180*$K$180 -> 0 | Z180: 0 | AA180: =$Z$180*$K$180 -> 0 | AR180: 4 | AT180: K | AU180: 2 | AY180: ROZPOCET | BE180: =IF($U$180="základní",$N$180,0) -> 1817.3 | BF180: =IF($U$180="snížená",$N$180,0) -> 0 | BG180: =IF($U$180="zákl. přenesená",$N$180,0) -> 0 | BH180: =IF($U$180="sníž. přenesená",$N$180,0) -> 0 | BI180: =IF($U$180="nulová",$N$180,0) -> 0 | BJ180: 1 | BK180: =ROUND($L$180*$K$180,2) -> 1817.3 | BL180: 4 | BM180: 486718932
F181: Uložení sypaniny na skládky | AT181: PP | AU181: 2
F182: "výkop - chodník"154 | K182: 154 | AT182: VV | AU182: 2 | AV182: 2 | AW182: -1 | AX182: 0 | AY182: ROZPOCET
F183: "výkop - autobus. zastávka"3,9 | K183: 3.9 | AT183: VV | AU183: 2 | AV183: 2 | AW183: -1 | AX183: 0 | AY183: ROZPOCET
F184: "výkop - úč. kom. v km 0,400"14,8 | K184: 14.8 | AT184: VV | AU184: 2 | AV184: 2 | AW184: -1 | AX184: 0 | AY184: ROZPOCET
F185: "výkop u nadzem. hydrantu v zú"1,5*0,6*1,5 | K185: 1.35 | AT185: VV | AU185: 2 | AV185: 2 | AW185: -1 | AX185: 0 | AY185: ROZPOCET
F186: "sejmutí drnu tl. 0,1m" (48+16,3+12,5)*0,1 | K186: 7.68 | AT186: VV | AU186: 2 | AV186: 2 | AW186: -1 | AX186: 0 | AY186: ROZPOCET
F187: Součet | K187: 181.73 | AT187: VV | AU187: 2 | AV187: 4 | AW187: -1 | AX187: 1 | AY187: ROZPOCET
C188: 20 | D188: K | E188: 171201211 | F188: Poplatek za uložení odpadu ze sypaniny na skládce (skládkovné) | J188: t | K188: 363.46 | L188: 90 | N188: =ROUND($L$188*$K$188,2) -> 32711.4 | R188: CS ÚRS 2013 01 | U188: základní | X188: 0 | Y188: =$X$188*$K$188 -> 0 | Z188: 0 | AA188: =$Z$188*$K$188 -> 0 | AR188: 4 | AT188: K | AU188: 2 | AY188: ROZPOCET | BE188: =IF($U$188="základní",$N$188,0) -> 32711.4 | BF188: =IF($U$188="snížená",$N$188,0) -> 0 | BG188: =IF($U$188="zákl. přenesená",$N$188,0) -> 0 | BH188: =IF($U$188="sníž. přenesená",$N$188,0) -> 0 | BI188: =IF($U$188="nulová",$N$188,0) -> 0 | BJ188: 1 | BK188: =ROUND($L$188*$K$188,2) -> 32711.4 | BL188: 4 | BM188: 1966020006
F189: Poplatek za uložení odpadu ze sypaniny na skládce (skládkovné) | AT189: PP | AU189: 2
F190: "výkop - chodník"154*2 | K190: 308 | AT190: VV | AU190: 2 | AV190: 2 | AW190: -1 | AX190: 0 | AY190: ROZPOCET
F191: "výkop - autobus. zastávka"3,9*2 | K191: 7.8 | AT191: VV | AU191: 2 | AV191: 2 | AW191: -1 | AX191: 0 | AY191: ROZPOCET
F192: "výkop - úč. kom. v km 0,400"14,8*2 | K192: 29.6 | AT192: VV | AU192: 2 | AV192: 2 | AW192: -1 | AX192: 0 | AY192: ROZPOCET
F193: "výkop u nadzem. hydrantu v zú"1,5*0,6*1,5*2 | K193: 2.7 | AT193: VV | AU193: 2 | AV193: 2 | AW193: -1 | AX193: 0 | AY193: ROZPOCET
F194: "sejmutí drnu tl. 0,1m" (48+16,3+12,5)*0,1*2 | K194: 15.36 | AT194: VV | AU194: 2 | AV194: 2 | AW194: -1 | AX194: 0 | AY194: ROZPOCET
F195: Součet | K195: 363.46 | AT195: VV | AU195: 2 | AV195: 4 | AW195: -1 | AX195: 1 | AY195: ROZPOCET
C196: 21 | D196: K | E196: 181301101 | F196: Rozprostření ornice tl vrstvy do 100 mm pl do 500 m2 v rovině nebo ve svahu do 1:5 | J196: m2 | K196: 123 | L196: 20 | N196: =ROUND($L$196*$K$196,2) -> 2460 | U196: základní | X196: 0 | Y196: =$X$196*$K$196 -> 0 | Z196: 0 | AA196: =$Z$196*$K$196 -> 0 | AR196: 4 | AT196: K | AU196: 2 | AY196: ROZPOCET | BE196: =IF($U$196="základní",$N$196,0) -> 2460 | BF196: =IF($U$196="snížená",$N$196,0) -> 0 | BG196: =IF($U$196="zákl. přenesená",$N$196,0) -> 0 | BH196: =IF($U$196="sníž. přenesená",$N$196,0) -> 0 | BI196: =IF($U$196="nulová",$N$196,0) -> 0 | BJ196: 1 | BK196: =ROUND($L$196*$K$196,2) -> 2460 | BL196: 4 | BM196: -547419339
F197: Rozprostření ornice tl vrstvy do 100 mm pl do 500 m2 v rovině nebo ve svahu do 1:5 | AT197: PP | AU197: 2
F198: "ohumusování" 123 | K198: 123 | AT198: VV | AU198: 2 | AV198: 2 | AW198: -1 | AX198: 1 | AY198: ROZPOCET
C199: 22 | D199: M | E199: 10371500R | F199: směs ornice a zahradnického substrátu v poměru 1:1 | J199: m3 | K199: 12.3 | L199: 120 | N199: =ROUND($L$199*$K$199,2) -> 1476 | U199: základní | X199: 0.6 | Y199: =$X$199*$K$199 -> 7.38 | Z199: 0 | AA199: =$Z$199*$K$199 -> 0 | AR199: 8 | AT199: M | AU199: 2 | AY199: ROZPOCET | BE199: =IF($U$199="základní",$N$199,0) -> 1476 | BF199: =IF($U$199="snížená",$N$199,0) -> 0 | BG199: =IF($U$199="zákl. přenesená",$N$199,0) -> 0 | BH199: =IF($U$199="sníž. přenesená",$N$199,0) -> 0 | BI199: =IF($U$199="nulová",$N$199,0) -> 0 | BJ199: 1 | BK199: =ROUND($L$199*$K$199,2) -> 1476 | BL199: 4 | BM199: -2066743313
F200: směs ornice a zahradnického substrátu v poměru 1:1 | AT200: PP | AU200: 2
F201: 123*0,1 | K201: 12.3 | AT201: VV | AU201: 2 | AV201: 2 | AW201: -1 | AX201: 1 | AY201: ROZPOCET
C202: 23 | D202: K | E202: 183403114 | F202: Obdělání půdy kultivátorováním v rovině a svahu do 1:5 | J202: m2 | K202: 123 | L202: 0.95 | N202: =ROUND($L$202*$K$202,2) -> 116.85 | U202: základní | X202: 0 | Y202: =$X$202*$K$202 -> 0 | Z202: 0 | AA202: =$Z$202*$K$202 -> 0 | AR202: 4 | AT202: K | AU202: 2 | AY202: ROZPOCET | BE202: =IF($U$202="základní",$N$202,0) -> 116.85 | BF202: =IF($U$202="snížená",$N$202,0) -> 0 | BG202: =IF($U$202="zákl. přenesená",$N$202,0) -> 0 | BH202: =IF($U$202="sníž. přenesená",$N$202,0) -> 0 | BI202: =IF($U$202="nulová",$N$202,0) -> 0 | BJ202: 1 | BK202: =ROUND($L$202*$K$202,2) -> 116.85 | BL202: 4 | BM202: 181031234
F203: Obdělání půdy kultivátorováním v rovině a svahu do 1:5 | AT203: PP | AU203: 2
F204: 123 | K204: 123 | AT204: VV | AU204: 2 | AV204: 2 | AW204: -1 | AX204: 0 | AY204: ROZPOCET
F205: Součet | K205: 123 | AT205: VV | AU205: 2 | AV205: 4 | AW205: -1 | AX205: 1 | AY205: ROZPOCET
C206: 24 | D206: K | E206: 183403152 | F206: Obdělání půdy vláčením v rovině a svahu do 1:5 | J206: m2 | K206: 123 | L206: 0.65 | N206: =ROUND($L$206*$K$206,2) -> 79.95 | U206: základní | X206: 0 | Y206: =$X$206*$K$206 -> 0 | Z206: 0 | AA206: =$Z$206*$K$206 -> 0 | AR206: 4 | AT206: K | AU206: 2 | AY206: ROZPOCET | BE206: =IF($U$206="základní",$N$206,0) -> 79.95 | BF206: =IF($U$206="snížená",$N$206,0) -> 0 | BG206: =IF($U$206="zákl. přenesená",$N$206,0) -> 0 | BH206: =IF($U$206="sníž. přenesená",$N$206,0) -> 0 | BI206: =IF($U$206="nulová",$N$206,0) -> 0 | BJ206: 1 | BK206: =ROUND($L$206*$K$206,2) -> 79.95 | BL206: 4 | BM206: 2063095279
F207: Obdělání půdy vláčením v rovině a svahu do 1:5 | AT207: PP | AU207: 2
F208: 123 | K208: 123 | AT208: VV | AU208: 2 | AV208: 2 | AW208: -1 | AX208: 0 | AY208: ROZPOCET
F209: Součet | K209: 123 | AT209: VV | AU209: 2 | AV209: 4 | AW209: -1 | AX209: 1 | AY209: ROZPOCET
C210: 25 | D210: K | E210: 183403161 | F210: Obdělání půdy válením v rovině a svahu do 1:5 | J210: m2 | K210: 123 | L210: 0.35 | N210: =ROUND($L$210*$K$210,2) -> 43.05 | U210: základní | X210: 0 | Y210: =$X$210*$K$210 -> 0 | Z210: 0 | AA210: =$Z$210*$K$210 -> 0 | AR210: 4 | AT210: K | AU210: 2 | AY210: ROZPOCET | BE210: =IF($U$210="základní",$N$210,0) -> 43.05 | BF210: =IF($U$210="snížená",$N$210,0) -> 0 | BG210: =IF($U$210="zákl. přenesená",$N$210,0) -> 0 | BH210: =IF($U$210="sníž. přenesená",$N$210,0) -> 0 | BI210: =IF($U$210="nulová",$N$210,0) -> 0 | BJ210: 1 | BK210: =ROUND($L$210*$K$210,2) -> 43.05 | BL210: 4 | BM210: 449128423
F211: Obdělání půdy válením v rovině a svahu do 1:5 | AT211: PP | AU211: 2
F212: 123 | K212: 123 | AT212: VV | AU212: 2 | AV212: 2 | AW212: -1 | AX212: 0 | AY212: ROZPOCET
F213: Součet | K213: 123 | AT213: VV | AU213: 2 | AV213: 4 | AW213: -1 | AX213: 1 | AY213: ROZPOCET
C214: 26 | D214: K | E214: 184807111 | F214: Zřízení ochrany stromu bedněním | J214: m2 | K214: 2.52 | L214: 200 | N214: =ROUND($L$214*$K$214,2) -> 504 | R214: CS ÚRS 2013 01 | U214: základní | X214: 0.0094 | Y214: =$X$214*$K$214 -> 0.023688 | Z214: 0 | AA214: =$Z$214*$K$214 -> 0 | AR214: 4 | AT214: K | AU214: 2 | AY214: ROZPOCET | BE214: =IF($U$214="základní",$N$214,0) -> 504 | BF214: =IF($U$214="snížená",$N$214,0) -> 0 | BG214: =IF($U$214="zákl. přenesená",$N$214,0) -> 0 | BH214: =IF($U$214="sníž. přenesená",$N$214,0) -> 0 | BI214: =IF($U$214="nulová",$N$214,0) -> 0 | BJ214: 1 | BK214: =ROUND($L$214*$K$214,2) -> 504 | BL214: 4 | BM214: 1389434692
F215: Zřízení ochrany stromu bedněním | AT215: PP | AU215: 2
F216: "vč. materiálu, bednění do v=2,0m, 1 ks strom, prum. 40cm"1,26*2 | K216: 2.52 | AT216: VV | AU216: 2 | AV216: 2 | AW216: -1 | AX216: 1 | AY216: ROZPOCET
C217: 27 | D217: K | E217: 184807112 | F217: Odstranění ochrany stromu bedněním | J217: m2 | K217: 2.52 | L217: 30 | N217: =ROUND($L$217*$K$217,2) -> 75.6 | R217: CS ÚRS 2013 01 | U217: základní | X217: 0 | Y217: =$X$217*$K$217 -> 0 | Z217: 0 | AA217: =$Z$217*$K$217 -> 0 | AR217: 4 | AT217: K | AU217: 2 | AY217: ROZPOCET | BE217: =IF($U$217="základní",$N$217,0) -> 75.6 | BF217: =IF($U$217="snížená",$N$217,0) -> 0 | BG217: =IF($U$217="zákl. přenesená",$N$217,0) -> 0 | BH217: =IF($U$217="sníž. přenesená",$N$217,0) -> 0 | BI217: =IF($U$217="nulová",$N$217,0) -> 0 | BJ217: 1 | BK217: =ROUND($L$217*$K$217,2) -> 75.6 | BL217: 4 | BM217: 882944104
F218: Odstranění ochrany stromu bedněním | AT218: PP | AU218: 2
D219: 2 - Zakládání | N219: =$BK$219 -> 1620 | W219: =SUM($W$220:$W$224) -> 0 | Y219: =SUM($Y$220:$Y$224) -> 1.58973192 | AA219: =SUM($AA$220:$AA$224) -> 0 | AR219: 1 | AT219: D | AU219: 1 | AY219: ROZPOCET | BK219: =SUM($BK$220:$BK$224) -> 1620
C220: 28 | D220: K | E220: 275313811 | F220: Základové patky z betonu tř. C 25/30 | J220: m3 | K220: 0.648 | L220: 2500 | N220: =ROUND($L$220*$K$220,2) -> 1620 | R220: CS ÚRS 2013 01 | U220: základní | X220: 2.45329 | Y220: =$X$220*$K$220 -> 1.58973192 | Z220: 0 | AA220: =$Z$220*$K$220 -> 0 | AR220: 4 | AT220: K | AU220: 2 | AY220: ROZPOCET | BE220: =IF($U$220="základní",$N$220,0) -> 1620 | BF220: =IF($U$220="snížená",$N$220,0) -> 0 | BG220: =IF($U$220="zákl. přenesená",$N$220,0) -> 0 | BH220: =IF($U$220="sníž. přenesená",$N$220,0) -> 0 | BI220: =IF($U$220="nulová",$N$220,0) -> 0 | BJ220: 1 | BK220: =ROUND($L$220*$K$220,2) -> 1620 | BL220: 4 | BM220: 281318124
F221: Základy z betonu prostého patky a bloky z betonu kamenem neprokládaného tř. C 25/30 | AT221: PP | AU221: 2
F222: "betonové patky k plotovým sloupkům" 0,3*0,3*0,8*8 | K222: 0.576 | AT222: VV | AU222: 2 | AV222: 2 | AW222: -1 | AX222: 0 | AY222: ROZPOCET
F223: "betonová patka odp. koše"0,3*0,3*0,8*1 | K223: 0.072 | AT223: VV | AU223: 2 | AV223: 2 | AW223: -1 | AX223: 0 | AY223: ROZPOCET
F224: Součet | K224: 0.648 | AT224: VV | AU224: 2 | AV224: 4 | AW224: -1 | AX224: 1 | AY224: ROZPOCET
D225: 3 - Svislé a kompletní konstrukce | N225: =$BK$225 -> 24078.63 | W225: =SUM($W$226:$W$239) -> 0 | Y225: =SUM($Y$226:$Y$239) -> 13.16643125 | AA225: =SUM($AA$226:$AA$239) -> 0 | AR225: 1 | AT225: D | AU225: 1 | AY225: ROZPOCET | BK225: =SUM($BK$226:$BK$239) -> 24078.63
C226: 29 | D226: K | E226: 338171123 | F226: Osazování sloupků a vzpěr plotových ocelových v 2,6 m se zabetonováním | J226: kus | K226: 8 | L226: 207 | N226: =ROUND($L$226*$K$226,2) -> 1656 | R226: CS ÚRS 2013 01 | U226: základní | X226: 0.17489 | Y226: =$X$226*$K$226 -> 1.39912 | Z226: 0 | AA226: =$Z$226*$K$226 -> 0 | AR226: 4 | AT226: K | AU226: 2 | AY226: ROZPOCET | BE226: =IF($U$226="základní",$N$226,0) -> 1656 | BF226: =IF($U$226="snížená",$N$226,0) -> 0 | BG226: =IF($U$226="zákl. přenesená",$N$226,0) -> 0 | BH226: =IF($U$226="sníž. přenesená",$N$226,0) -> 0 | BI226: =IF($U$226="nulová",$N$226,0) -> 0 | BJ226: 1 | BK226: =ROUND($L$226*$K$226,2) -> 1656 | BL226: 4 | BM226: 632565725
F227: Osazování sloupků a vzpěr plotových ocelových trubkových nebo profilovaných výšky do 2,60 m se zabetonováním (tř. C 25/30) do 0,08 m3 do připravených jamek | AT227: PP | AU227: 2
C228: 30 | D228: M | E228: 553422540 | F228: sloupek plotový průběžný pozinkovaný a komaxitový 2250/38x1,5 mm | J228: kus | K228: 6 | L228: 385 | N228: =ROUND($L$228*$K$228,2) -> 2310 | R228: CS ÚRS 2013 01 | U228: základní | X228: 0.0032 | Y228: =$X$228*$K$228 -> 0.0192 | Z228: 0 | AA228: =$Z$228*$K$228 -> 0 | AR228: 8 | AT228: M | AU228: 2 | AY228: ROZPOCET | BE228: =IF($U$228="základní",$N$228,0) -> 2310 | BF228: =IF($U$228="snížená",$N$228,0) -> 0 | BG228: =IF($U$228="zákl. přenesená",$N$228,0) -> 0 | BH228: =IF($U$228="sníž. přenesená",$N$228,0) -> 0 | BI228: =IF($U$228="nulová",$N$228,0) -> 0 | BJ228: 1 | BK228: =ROUND($L$228*$K$228,2) -> 2310 | BL228: 4 | BM228: 2012404759
F229: příslušenství stavební kovové sloupky plotové pozinkované a komaxitové průběžný 38x1,5 mm včetně čepičky, úchytek 2250 mm | AT229: PP | AU229: 2
C230: 31 | D230: M | E230: 553422620 | F230: sloupek plotový koncový pozinkovaný a komaxitový 2350/48x1,5 mm | J230: kus | K230: 2 | L230: 425 | N230: =ROUND($L$230*$K$230,2) -> 850 | R230: CS ÚRS 2013 01 | U230: základní | X230: 0.0053 | Y230: =$X$230*$K$230 -> 0.0106 | Z230: 0 | AA230: =$Z$230*$K$230 -> 0 | AR230: 8 | AT230: M | AU230: 2 | AY230: ROZPOCET | BE230: =IF($U$230="základní",$N$230,0) -> 850 | BF230: =IF($U$230="snížená",$N$230,0) -> 0 | BG230: =IF($U$230="zákl. přenesená",$N$230,0) -> 0 | BH230: =IF($U$230="sníž. přenesená",$N$230,0) -> 0 | BI230: =IF($U$230="nulová",$N$230,0) -> 0 | BJ230: 1 | BK230: =ROUND($L$230*$K$230,2) -> 850 | BL230: 4 | BM230: -228753646
F231: příslušenství stavební kovové sloupky plotové pozinkované a komaxitové koncový + rohový 48x1,5 mm včetně čepičky, úchytek 2250 mm | AT231: PP | AU231: 2
... 184 more rows

Sheet Pokyny pro vyplnění
C3: Struktura údajů, formát souboru a metodika pro zpracování
C4: Struktura
C6: Soubor je složen ze záložky Rekapitulace stavby a záložek s názvem soupisu prací pro jednotlivé objekty ve formátu XLS. Každá ze záložek přitom obsahuje
C7: ještě samostatné sestavy vymezené orámovaním a nadpisem sestavy. Všechny sestavy jsou optimalizovány i pro tisk na formát A4 na výšku.
C9: Rekapitulace stavby obsahuje sestavu Rekapitulace stavby a Rekapitulace objektů stavby a soupisů prací.
D10: V sestavě Rekapitulace stavby jsou uvedeny informace identifikující předmět veřejné zakázky na stavební práce s rekapitulací celkové nabídkové ceny
D11: uchazeče.
D13: V sestavě Rekapitulace objektů stavby a soupisů prací je uvedena rekapitulace stavebních objektů, inženýrských objektů, provozních souborů,
D14: vedlejších a ostatních nákladů a ostatních nákladů s rekapitulací nabídkové ceny za jednotlivé soupisy prací. Na základě údaje Typ je možné
D15: identifikovat, zda se jedná o objekt nebo soupis prací pro daný objekt:
E16: STA | F16: Stavební objekt pozemní
E17: ING | F17: Stavební objekt inženýrský
E18: PRO | F18: Provozní soubor
E19: VON | F19: Vedlejší a ostatní náklady
E20: OST | F20: Ostatní
E21: Soupis | F21: Soupis prací pro daný typ objektu
C23: Soupis prací pro jednotlivé objekty obsahuje sestavy Krycí list soupisu, Rekapitulace členění soupisu prací, Soupis prací. Za soupis prací může být považován
C24: i objekt stavby v případě, že neobsahuje podřízenou zakázku.
D25: Krycí list soupisu obsahuje rekapitulaci informací o předmětu veřejné zakázky ze sestavy Rekapitulace stavby, informaci o zařazení objektu do KSO
D26: a rekapitulaci celkové nabídkové ceny uchazeče za aktuální soupis prací.
D28: Rekapitulace členění soupisu prací obsahuje rekapitulaci soupisu prací ve všech úrovních členění soupisu tak, jak byla tato členění použita (např.
D29: stavební díly, funkční díly, případně jiné členění) s rekapitulací nabídkové ceny.
D31: Soupis prací obsahuje položky veškerých stavebních nebo montážních prací, dodávek materiálů a služeb nezbytných pro zhotovení stavebního objektu,
D32: inženýrského objektu, provozního souboru, vedlejších a ostatních nákladů.
D33: Pro položky soupisu prací se zobrazují následující informace:
E34: PČ | G34: Pořadové číslo položky v aktuálním soupisu
E35: TYP | G35: Typ položky: K - konstrukce, M - materiál
E36: Kód | G36: Kód položky
E37: Popis | G37: Zkrácený popis položky
E38: MJ | G38: Měrná jednotka položky
E39: Množství | G39: Množství v měrné jednotce
E40: J.cena | G40: Jednotková cena položky. Zadaní může obsahovat namísto J.ceny sloupce J.materiál a J.montáž, jejichž součet definuje
G41: J.cenu položky.
E42: Cena celkem | G42: Celková cena položky daná jako součin množství a j.ceny
E43: Cenová soustava | G43: Příslušnost položky do cenové soustavy
D45: Ke každé položce soupisu prací se na samostatných řádcích může zobrazovat:
E46: Plný popis položky
E47: Poznámka k souboru cen a poznámka zadavatele
E48: Výkaz výměr
D49: Pokud je k řádku výkazu výměr evidovaný údaj ve sloupci Kód, jedná se o definovaný odkaz, na který se může odvolávat výkaz výměr z jiné položky.
C50: Metodika pro zpracování
C52: Jednotlivé sestavy jsou v souboru provázány. Editovatelné pole jsou zvýrazněny žlutým podbarvením, ostatní pole neslouží k editaci a nesmí být jakkoliv
C53: modifikovány. Hodnoty jsou ve výpočtech zaokrouhlovány na počet desetinných míst viditelných v jednotlivých polích.
C55: Uchazeč je pro podání nabídky povinen vyplnit žlutě podbarvená pole:
D56: Pole Uchazeč v sestavě Rekapitulace stavby - zde uchazeč vyplní svůj název (název subjektu)
D57: Pole IČ a DIČ v sestavě Rekapitulace stavby - zde uchazeč vyplní svoje IČ a DIČ
D58: Datum v sestavě Rekapitulace stavby - zde uchazeč vyplní datum vytvoření nabídky
D59: J.cena = jednotková cena v sestavě Soupis prací o maximálním počtu desetinných míst uvedených v poli
D60: - pokud sestavy soupisů prací obsahují pole J.cena, musí být všechna tato pole vyplněna nenulovými kladnými číslicemi
D61: Poznámka - nepovinný údaj pro položku soupisu
D63: V případě, že sestavy soupisů prací neobsahují pole J.cena, potom ve všech soupisech prací obsahují pole:
D64: - J.materiál - jednotková cena materiálu
D65: - J.montáž - jednotková cena montáže
D66: Uchazeč je v tomto případě povinen vyplnit všechna pole J.materiál a pole J.montáž nenulovými kladnými číslicemi. V případech, kdy položka
D67: neobsahuje žádný materiál je přípustné, aby pole J.materiál bylo vyplněno nulou. V případech, kdy položka neobsahuje žádnou montáž je přípustné,
D68: aby pole J.montáž bylo vyplněno nulou. Není však přípustné, aby obě pole - J.materiál, J.Montáž byly u jedné položky vyplněny nulou.
C73: Rekapitulace stavby
C74: Název | F74: Povinný | H74: Popis | I74: Typ | J74: Max. počet
C75: atributu | F75: (A/N) | J75: znaků
C77: Stavba | F77: A | H77: Kód a Název stavby spojený pomlčkou | I77: String | J77: 20 + 120
C78: Místo | F78: N | H78: Místo stavby | I78: String | J78: 50
C79: Datum | F79: A | H79: Datum vykonaného exportu | I79: Date
C80: Zadavatel | F80: N | H80: Zadavatel zadaní | I80: String | J80: 50
C81: IČ | F81: N | H81: IČ zadavatele zadaní | I81: String | J81: 20
C82: DIČ | F82: N | H82: DIČ zadavatele zadaní | I82: String | J82: 20
C83: Uchazeč | F83: N | H83: Uchazeč veřejné zakázky | I83: String | J83: 50
C84: Projektant | F84: N | H84: Projektant | I84: String | J84: 50
C85: Poznámka | F85: N | H85: Poznámka k zadání | I85: String | J85: 255
C86: Sazba DPH | F86: A | H86: Rekapitulace sazeb DPH u položek soupisů | I86: eGSazbaDph
C87: Základna DPH | F87: A | H87: Základna DPH určena součtem celkové ceny z položek soupisů | I87: Double
C88: Hodnota DPH | F88: A | H88: Hodnota DPH | I88: Double
C89: Cena bez DPH | F89: A | H89: Celková cena bez DPH za celou stavbu. Sčítává se ze všech listů. | I89: Double
C90: Cena s DPH | F90: A | H90: Celková cena s DPH za celou stavbu | I90: Double
C95: Rekapitulace objektů stavby a soupisů prací
C96: Název | F96: Povinný | H96: Popis | I96: Typ | J96: Max. počet
C97: atributu | F97: (A/N) | J97: znaků
C99: Stavba | F99: A | H99: Přebírá se z Rekapitulace stavby | I99: String | J99: 20 + 120
C100: Místo | F100: N | H100: Přebírá se z Rekapitulace stavby | I100: String | J100: 50
C101: Datum | F101: A | H101: Přebírá se z Rekapitulace stavby | I101: Date
C102: Zadavatel | F102: N | H102: Přebírá se z Rekapitulace stavby | I102: String | J102: 50
C103: Projektant | F103: N | H103: Přebírá se z Rekapitulace stavby | I103: String | J103: 50
C104: Uchazeč | F104: N | H104: Přebírá se z Rekapitulace stavby | I104: String | J104: 50
C105: Kód | F105: A | H105: Kód objektu | I105: String | J105: 20
C106: Objektu, Soupis prací | F106: A | H106: Název objektu | I106: String | J106: 120
C107: Cena bez DPH | F107: A | H107: Cena bez DPH za daný objekt | I107: Double
C108: Cena s DPH | F108: A | H108: Cena spolu s DPH za daný objekt | I108: Double
C109: Typ | F109: A | H109: Typ zakázky | I109: eGTypZakazky
C114: Krycí list soupisu
C115: Název | F115: Povinný | H115: Popis | I115: Typ | J115: Max. počet
C116: atributu | F116: (A/N) | J116: znaků
C118: Stavba | F118: A | H118: Přebírá se z Rekapitulace stavby | I118: String | J118: 20 + 120
C119: Objekt | F119: A | H119: Kód a název objektu | I119: String | J119: 20 + 120
C120: Soupis | F120: A | H120: Kód a název soupisu | I120: String | J120: 20 + 120
C121: KSO | F121: N | H121: Klasifikace stavebního objektu | I121: String | J121: 15
C122: Místo | F122: N | H122: Přebírá se z Rekapitulace stavby | I122: String | J122: 50
C123: Zadavatel | F123: N | H123: Přebírá se z Rekapitulace stavby | I123: String | J123: 50
C124: Uchazeč | F124: N | H124: Přebírá se z Rekapitulace stavby | I124: String | J124: 50
C125: Projektant | F125: N | H125: Přebírá se z Rekapitulace stavby | I125: String | J125: 50
C126: Poznámka | F126: N | H126: Poznámka k soupisu prací | I126: String | J126: 255
C127: Sazba DPH | F127: A | H127: Rekapitulace sazeb DPH na položkách aktuálního soupisu | I127: eGSazbaDph
C128: Základna DPH | F128: A | H128: Základna DPH určena součtem celkové ceny z položek aktuálního soupisu | I128: Double
C129: Hodnota DPH | F129: A | H129: Hodnota DPH | I129: Double
C130: Cena bez DPH | F130: A | H130: Cena bez DPH za daný soupis | I130: Double
C131: Cena s DPH | F131: A | H131: Cena s DPH za daný soupis | I131: Double
C136: Rekapitulace členění soupisu prací
C137: Název | F137: Povinný | H137: Popis | I137: Typ | J137: Max. počet
C138: atributu | F138: (A/N) | J138: znaků
C140: Stavba | F140: A | H140: Přebírá se z Rekapitulace stavby | I140: String | J140: 20 + 120
C141: Objekt | F141: A | H141: Kód a název objektu, přebírá se z Krycího listu soupisu | I141: String | J141: 20 + 120
C142: Soupis | F142: A | H142: Kód a název objektu, přebírá se z Krycího listu soupisu | I142: String | J142: 20 + 120
C143: Místo | F143: N | H143: Přebírá se z Rekapitulace stavby | I143: String | J143: 50
C144: Datum | F144: A | H144: Přebírá se z Rekapitulace stavby | I144: Date
C145: Zadavatel | F145: N | H145: Přebírá se z Rekapitulace stavby | I145: String | J145: 50
C146: Projektant | F146: N | H146: Přebírá se z Rekapitulace stavby | I146: String | J146: 50
C147: Uchazeč | F147: N | H147: Přebírá se z Rekapitulace stavby | I147: String | J147: 50
C148: Kód dílu - Popis | F148: A | H148: Kód a název dílu ze soupisu | I148: String | J148: 20 + 100
C149: Cena celkem | F149: A | H149: Cena celkem za díl ze soupisu | I149: Double
C154: Soupis prací
C155: Název | F155: Povinný | H155: Popis | I155: Typ | J155: Max. počet
C156: atributu | F156: (A/N) | J156: znaků
C158: Stavba | F158: A | H158: Přebírá se z Rekapitulace stavby | I158: String | J158: 20 + 120
C159: Objekt | F159: A | H159: Kód a název objektu | I159: String | J159: 20 + 120
C160: Soupis | F160: A | H160: Přebírá se z Krycího listu soupisu | I160: String | J160: 20 + 120
C161: Místo | F161: N | H161: Přebírá se z Krycího listu soupisu | I161: String | J161: 50
C162: Datum | F162: A | H162: Přebírá se z Krycího listu soupisu | I162: Date
C163: Zadavatel | F163: N | H163: Přebírá se z Krycího listu soupisu | I163: String | J163: 50
C164: Projektant | F164: N | H164: Přebírá se z Krycího listu soupisu | I164: String | J164: 50
C165: Uchazeč | F165: N | H165: Přebírá se z Krycího listu soupisu | I165: String | J165: 50
C166: PČ | F166: A | H166: Pořadové číslo položky soupisu | I166: Long
C167: Typ | F167: A | H167: Typ položky soupisu | I167: eGTypPolozky | J167: 1
C168: Kód | F168: A | H168: Kód položky ze soupisu | I168: String | J168: 20
C169: Popis | F169: A | H169: Popis položky ze soupisu | I169: String | J169: 255
C170: MJ | F170: A | H170: Měrná jednotka položky | I170: String | J170: 10
C171: Množství | F171: A | H171: Množství položky soupisu | I171: Double
C172: J.Cena | F172: A | H172: Jednotková cena položky | I172: Double
C173: Cena celkem | F173: A | H173: Cena celkem vyčíslena jako J.Cena * Množství | I173: Double
C174: Cenová soustava | F174: N | H174: Zařazení položky do cenové soustavy | I174: String | J174: 50
C179: Datová věta
C180: Typ věty | F180: Hodnota | H180: Význam
C182: eGSazbaDPH | F182: základní | H182: Základní sazba DPH
F183: snížená | H183: Snížená sazba DPH
F184: nulová | H184: Nulová sazba DPH
F185: zákl. přenesená | H185: Základní sazba DPH přenesená
F186: sníž. přenesená | H186: Snížená sazba DPH přenesená
C188: eGTypZakazky | F188: STA | H188: Stavební objekt
F189: PRO | H189: Provozní soubor
F190: ING | H190: Inženýrský objekt
F191: VON | H191: Vedlejší a ostatní náklady
F192: OST | H192: Ostatní náklady
C194: eGTypPolozky | F194: 1 | H194: Položka typu HSV
F195: 2 | H195: Položka typu PSV
F196: 3 | H196: Položka typu M
F197: 4 | H197: Položka typu OST
